Cogmind - Beta 13 X1 @@@ ROGUE MODE // 2023.11.03 @ 19:29:57 Player: MTF Result: Escaped! Performance ------------- Evolutions (9) 4500 Regions Visited (34) 6800 Robots Destroyed (420) 2100 Value Destroyed (17959) 17959 Prototype IDs (89) 1780 Alien Tech Used (1) 200 Bonus (7766) 7766 TOTAL SCORE: 41105 Bonus ------- High Alert Combat Kills 2125 Follower Combat Kills 3460 Network Hubs Disabled 200 Aligned with FarCom 300 Met Data Miner 300 Met Imprinter 300 Destroyed Z-Imprinter 1000 Met Zhirov 300 Built Enhanced Grunts 300 Met R17 at Cetus 500 Win 3000 Friendly Fire -4019 Cogmind --------- Core Integrity 1317/1600 Matter 300/300 Energy 337/850 System Corruption 25% Temperature Cool (19) Movement Treading (155) Location To Epsilon Eridani Parts ------- > --- POWER (4) -------- Quantum Reactor Quantum Reactor Quantum Reactor Improved Quantum Reactor > --- PROPULSION (6) --- Biometal Heavy Treads Advanced Heavy Siege Treads Advanced Heavy Siege Treads > --- UTILITY (10) ----- Advanced Heat Sink Advanced Heat Sink Experimental Coolant Injector Huge Storage Unit Surveybot 24 Chip Advanced Targeting Computer Advanced Particle Charger Advanced Transmission Jammer Medium Regenerative Plating Force Field > --- WEAPON (5) ------- Phase Gun Dispersion Rifle Quantum Rifle Heavy Dispersion Rifle (fused) Enhanced Quantum Rifle > --- INVENTORY (25) --- Advanced Heavy Siege Treads Advanced Energy Well (500) Advanced Energy Well (500) Terrain Scanner Advanced Terrain Scan Processor Advanced Particle Charger Graphene Brace Hacking Suite Advanced Component Analysis Suite Long-range Tractor Beam Transdimensional Reconstructor Gamma Rifle Compact HERF Cannon Compact HERF Cannon Compact HERF Cannon Enhanced Nova Cannon Enhanced Nova Cannon Enhanced Nova Cannon Enhanced Nova Cannon Linear Accelerator AWS/Autocannon Peak State ------------ > --- POWER ------------ Quantum Reactor Light Quantum Reactor Light Quantum Reactor Improved Quantum Reactor > --- PROPULSION ------- Biometal Heavy Treads Advanced Heavy Siege Treads Advanced Heavy Siege Treads > --- UTILITY ---------- Advanced Heat Sink Experimental Coolant Injector Huge Storage Unit Surveybot 24 Chip Advanced Targeting Computer Advanced Particle Charger Advanced Transmission Jammer Medium Regenerative Plating Force Field Advanced Component Analysis Suite > --- WEAPON ----------- Dispersion Rifle Quantum Rifle Heavy Dispersion Rifle Enhanced Nova Cannon Enhanced Nova Cannon > --- INVENTORY -------- Advanced Heavy Siege Treads Advanced Heat Sink Advanced Energy Well Advanced Energy Well Terrain Scanner Advanced Terrain Scan Processor Advanced Particle Charger Graphene Brace Hacking Suite Long-range Tractor Beam Transdimensional Reconstructor Gamma Rifle Gamma Rifle Gamma Rifle Gamma Rifle Phase Gun Enhanced Quantum Rifle Enhanced Nova Cannon Enhanced Nova Cannon Linear Accelerator AWS/Autocannon Advanced Remote Datajack [Rating: 212] Favorites ----------- Power Cooled Ion Engine Engine Cooled Ion Engine Power Core Micro Fission Core Reactor Antimatter Reactor Propulsion Advanced Treads Treads Advanced Treads Leg Zionite Composite Leg I Utility Huge Storage Unit Device Advanced Heat Sink Storage Huge Storage Unit Processor Advanced Targeting Computer Hackware Ghost Barrier Protection Improved Heavy Armor Plating Weapon XL Autogun Subcomponent Energy Gun Heavy Wave Gun Energy Cannon Neutron Cannon Ballistic Gun XL Autogun Subcomponent Ballistic Cannon Improved Light Cannon Launcher Long-range Missile Launcher Special Weapon Mining Laser Impact Weapon Powered Hammer Slashing Weapon Greatsword Build | -11 -10 -10 -9 -9 -9 -8 -8 -8 -7 -7 -7 -7 -6 -6 -6 -6 -6 -6 -5 -5 -5 -5 -5 -4 -4 -4 -4 -4 -4 -4 -4 -3 -2 -1 ------- Run | Jun Mat Min Mat Min Exi Min Mat Sto Fac Low Low Dat Pro Fac Low Low Zio Dee Pro Fac Upp Upp Zhi Pro Fac Was Fac Ext Cet Arc Hub Res Res Acc Slots Evolved 18 | . . . 2 . . . 2 . 2 . . . . 2 . . . . . 2 . . . . 2 . . . . . . 2 2 2 Power 3 | . . . . . . . . . 1 . . . . . . . . . . . . . . . . . . . . . . 1 . 1 Propulsion 4 | . . . . . . . 2 . . . . . . . . . . . . 1 . . . . . . . . . . . 1 . . Utility 8 | . . . 1 . . . . . 1 . . . . 2 . . . . . . . . . . 2 . . . . . . . 2 . Weapon 3 | . . . 1 . . . . . . . . . . . . . . . . 1 . . . . . . . . . . . . . 1 Parts Attached 637 | 3 11 15 19 18 7 5 22 35 15 5 17 32 6 49 10 2 7 37 13 10 5 7 9 6 21 16 12 18 21 9 19 49 62 45 Power 49 | . 1 1 2 . . . 2 2 1 . . 1 1 2 . . 1 . 1 1 1 1 4 . 1 2 2 2 2 . . 3 8 7 Engine 12 | . 1 1 2 . . . 2 2 1 . . . . 1 . . 1 . . . . . . . . . . . . . . 1 . . Core 5 | . . . . . . . . . . . . . 1 . . . . . . 1 . . 2 . . . 1 . . . . . . . Reactor 32 | . . . . . . . . . . . . 1 . 1 . . . . 1 . 1 1 2 . 1 2 1 2 2 . . 2 8 7 Propulsion 73 | 2 4 4 5 2 1 . 4 6 1 . 4 7 1 6 . . . 4 . 1 . . . 2 . 2 . 1 3 1 3 1 5 3 Treads 56 | 2 2 2 5 2 1 . 4 6 1 . 4 3 . 4 . . . . . . . . . 2 . 2 . 1 3 1 2 1 5 3 Leg 17 | . 2 2 . . . . . . . . . 4 1 2 . . . 4 . 1 . . . . . . . . . . 1 . . . Wheel . | . . . . . . . . . . . . . . . . . . . . . . . . . . . . . . . . . . . Hover . | . . . . . . . . . . . . . . . . . . . . . . . . . . . . . . . . . . . Flight . | . . . . . . . . . . . . . . . . . . . . . . . . . . . . . . . . . . . Utility 231 | 1 5 5 8 3 5 . 2 4 4 1 4 9 3 12 5 . 1 15 6 1 2 2 3 2 12 6 8 6 10 6 7 29 31 13 Device 162 | 1 2 5 3 2 3 . 2 2 3 1 2 6 3 6 4 . . 8 3 . 2 1 2 1 11 5 4 4 5 5 5 23 26 12 Storage 12 | . 3 . 2 . 2 . . . . . . 1 . . . . . . . . . . . . . . 2 . . . . 1 . 1 Processor 11 | . . . 1 . . . . 1 . . 2 . . 1 . . 1 . . . . . . . 1 . . . . . . 1 3 . Hackware 5 | . . . . . . . . . . . . . . . . . . . . 1 . . . . . . 1 . . . . 2 1 . Protection 41 | . . . 2 1 . . . 1 1 . . 2 . 5 1 . . 7 3 . . 1 1 1 . 1 1 2 5 1 2 2 1 . Artifact . | . . . . . . . . . . . . . . . . . . . . . . . . . . . . . . . . . . . Weapon 284 | . 1 5 4 13 1 5 14 23 9 4 9 15 1 29 5 2 5 18 6 7 2 4 2 2 8 6 2 9 6 2 9 16 18 22 Energy Gun 102 | . 1 4 4 4 . . 2 1 . . . 4 1 13 3 1 3 5 . . . . . . . 4 2 5 4 2 7 10 7 15 Energy Cannon 45 | . . 1 . . . . . . . . . 1 . 12 1 1 1 2 1 2 . . . . 2 . . 1 . . . 6 8 6 Ballistic Gun 69 | . . . . 3 1 2 10 12 5 1 5 7 . . . . . 4 3 4 1 2 1 2 4 2 . . . . . . . . Ballistic Cannon 3 | . . . . 1 . . . . . 1 . . . . . . . . . . . . . . . . . . . . 1 . . . Launcher 33 | . . . . 1 . 2 . 4 . 2 1 1 . 3 1 . . 5 2 1 1 1 1 . 1 . . 3 2 . 1 . . . Special Weapon 14 | . . . . 4 . 1 2 5 . . . . . . . . . . . . . . . . 1 . . . . . . . . 1 Impact Weapon 14 | . . . . . . . . 1 4 . 2 2 . 1 . . 1 2 . . . 1 . . . . . . . . . . . . Slashing Weapon 4 | . . . . . . . . . . . 1 . . . . . . . . . . . . . . . . . . . . . 3 . Piercing Weapon . | . . . . . . . . . . . . . . . . . . . . . . . . . . . . . . . . . . . Special Melee Weapon . | . . . . . . . . . . . . . . . . . . . . . . . . . . . . . . . . . . . Unidentified Prototypes 33 | . . . 2 . . . 3 5 . . . 4 . . . . . 9 . 1 . . 4 . . . . . 3 . 1 1 . . Corrupted Parts 6 | . . . . . . . . . . . . . . . . . . . . . . . . . . . . 1 2 . 1 1 1 . System Corruption 25 | . . . . . . . . . . . . . . . . . . . . . . . . . . . . 1 8 . 12 3 1 . Parts Lost 59 | . . 2 3 3 . . . . . 1 . 8 . 5 1 . . 4 4 . . . . 1 . 2 . 3 3 . 8 4 5 2 Power 7 | . . . 1 . . . . . . . . 1 . 1 . . . . 1 . . . . . . . . . . . 1 . 2 . Propulsion 10 | . . 1 . 1 . . . . . . . 3 . 1 . . . 2 . . . . . . . . . . . . 1 1 . . Utility 26 | . . . 1 1 . . . . . 1 . 3 . 1 1 . . 1 3 . . . . 1 . 1 . 2 3 . 2 3 1 1 Weapon 16 | . . 1 1 1 . . . . . . . 1 . 2 . . . 1 . . . . . . . 1 . 1 . . 4 . 2 1 Highest Loss Streak 8 | . . 2 1 1 . . . . . 1 . 8 . 5 1 . . 3 3 . . . . 1 . 2 . 2 3 . 5 3 2 2 To Critical Strikes . | . . . . . . . . . . . . . . . . . . . . . . . . . . . . . . . . . . . Average Slot Usage (%) 89 | . 99 99 99 100 93 88 89 93 99 100 100 89 99 98 93 93 83 90 92 87 89 90 98 87 83 69 70 78 77 68 71 77 84 86 Engine 7 | . 14 14 11 11 11 11 9 9 15 15 15 11 6 3 6 6 7 13 9 2 . . . . . . . . . . . 2 . . Reactor 4 | . . . . . . . . . . . . 2 7 5 6 6 5 . 2 . 1 4 5 5 5 8 9 9 10 10 9 7 11 15 Treads 16 | . 25 8 22 22 22 22 36 35 30 30 30 18 . 1 26 26 26 5 . . . . . 10 10 9 10 10 10 14 14 14 15 11 Leg 6 | . 2 19 . . . . . . . . . 10 29 24 . . . 18 26 29 29 29 29 6 5 . . . . . . . . . Device 13 | . 13 14 10 11 9 11 9 5 6 7 7 10 15 18 20 20 19 10 11 11 11 13 12 9 15 10 11 20 21 12 15 17 27 23 Storage 7 | . 14 14 11 11 11 11 9 9 7 7 7 7 7 6 6 6 6 6 6 5 5 5 5 5 5 5 6 9 5 5 5 4 4 4 Processor 2 | . . . 5 . . . . 3 7 7 7 3 . 4 . . . 6 6 . . . . . 3 1 . . . . . . 4 8 Protection 5 | . . . 5 11 5 . . 3 7 7 7 7 7 6 6 6 6 7 7 5 5 5 9 11 6 5 3 3 7 3 5 4 4 4 Energy Gun 9 | . 28 16 23 23 5 . . . . . . 7 23 14 17 13 3 6 . . . . . . . 18 21 20 20 21 19 14 13 17 Energy Cannon 2 | . . 11 9 . . . . . . . . . . 4 1 5 1 6 . . . . . . . . . . . . . 3 3 2 Ballistic Gun 8 | . . . . 6 27 32 24 26 20 22 22 4 . . . . . 4 19 21 23 22 20 22 20 2 . . . . . . . . Naked Turns . | . . . . . . . . . . . . . . . . . . . . . . . . . . . . . . . . . . . Heaviest Build 214 | 12 31 37 104 102 117 111 118 111 117 120 117 128 125 152 147 142 142 144 133 123 129 123 128 133 144 185 185 137 167 167 166 145 146 214 Greatest Support 240 | 40 40 40 40 43 43 43 83 83 83 83 88 112 112 112 88 88 88 100 100 124 124 124 124 140 140 140 140 140 160 188 190 240 240 240 Greatest Overweight (x) 5 | . . 1 2 2 2 2 1 1 1 1 1 4 1 3 1 1 1 5 1 . 1 . 1 1 1 1 1 . 1 1 . . 1 . Average Overweight (x) . | . . . 1 2 1 2 1 1 1 1 1 1 1 1 1 1 1 1 1 . . . . . . . . . . . . . . . Largest Inventory Capacity 25 | 8 15 15 25 25 25 25 25 25 25 25 25 25 25 25 25 25 25 25 25 25 25 25 25 25 25 25 25 20 20 20 20 20 20 25 Average Capacity 23 | 8 11 15 23 25 20 25 25 25 25 25 25 25 25 25 25 25 25 25 25 25 25 25 25 25 25 25 22 20 20 20 20 20 20 24 Most Carried 25 | 6 11 15 25 25 24 25 25 25 25 25 25 25 25 25 25 23 25 25 25 23 24 25 25 25 25 25 25 20 20 20 20 20 20 25 Average Carried 22 | 4 7 14 21 23 18 24 24 24 24 24 24 23 24 23 24 23 24 24 22 21 23 24 24 24 24 24 22 19 19 19 18 19 17 22 Final Capacity 25 | 8 15 15 25 25 25 25 25 25 25 25 25 25 25 25 25 25 25 25 25 25 25 25 25 25 25 25 20 20 20 20 20 20 20 25 Final Carried 25 | 4 11 15 25 21 23 25 25 25 25 24 25 25 25 25 23 23 25 25 20 23 24 25 25 25 25 25 20 20 20 20 18 19 19 24 Class Distribution -------------------- 30% | Scavenger-Mutant 20% | Scavenger-Tank 11% | Scavenger-Skirmisher 7% | Mutant 5% | Scavenger-Gunner 5% | Skirmisher 4% | Tank 4% | Derelict-Gunner 3% | Gunner Dominant Class ---------------- Mutant | -10/Materials Mutant | -10/Mines Scavenger-Gunner | -9/Materials Scavenger-Tank | -9/Mines Scavenger-Tank | -9/Exiles Scavenger-Skirmisher | -8/Mines Scavenger-Skirmisher | -8/Materials Skirmisher | -8/Storage Scavenger-Skirmisher | -7/Factory Tank | -7/Lower Caves Derelict-Gunner | -7/Lower Caves Derelict-Mutant | -7/Data Miner Scavenger-Tank | -6/Proximity Caves Scavenger-Mutant | -6/Factory Scavenger-Tank | -6/Lower Caves Scavenger-Mutant | -6/Lower Caves Scavenger-Mutant | -6/Zion Gunner | -6/Deep Caves Scavenger-Gunner | -5/Proximity Caves Hacker-Skirmisher | -5/Factory Hacker-Tank | -5/Upper Caves Scavenger-Tank | -5/Upper Caves Scavenger-Tank | -5/Zhirov Scavenger-Tank | -4/Proximity Caves Scavenger-Tank | -4/Factory Scavenger-Mutant | -4/Waste Scavenger-Skirmisher | -4/Factory Scavenger-Skirmisher | -4/Extension Scavenger-Tank | -4/Cetus Scavenger-Mutant | -4/Archives Scavenger-Tank | -4/Hub_04(d) Scavenger-Mutant | -3/Research Scavenger-Mutant | -2/Research Generator-Mutant | -1/Access Resources | -11 -10 -10 -9 -9 -9 -8 -8 -8 -7 -7 -7 -7 -6 -6 -6 -6 -6 -6 -5 -5 -5 -5 -5 -4 -4 -4 -4 -4 -4 -4 -4 -3 -2 -1 ----------- Run | Jun Mat Min Mat Min Exi Min Mat Sto Fac Low Low Dat Pro Fac Low Low Zio Dee Pro Fac Upp Upp Zhi Pro Fac Was Fac Ext Cet Arc Hub Res Res Acc Matter Collected 11825 | 228 210 290 237 264 7 59 656 1334 266 197 353 594 187 496 118 35 75 385 670 196 165 162 245 281 623 569 172 279 310 183 271 539 599 570 Remotely 1218 | . . . . . . . 148 . . . . . . . 29 . . . 105 . . . . . 409 352 . . . . . . 175 . Salvage Created 20798 | 118 287 58 961 544 . 132 528 1944 382 299 314 444 186 1108 526 . . 354 528 221 297 187 346 369 934 1566 185 1648 527 383 1046 1181 1907 1288 Parts 931 | 4 14 . 62 29 . 20 26 93 19 11 4 29 4 51 14 . . 21 20 8 14 6 4 27 46 31 13 62 24 26 43 57 93 56 Haulers Intercepted 14 | . . . 3 . . . 4 6 . . . . . 1 . . . . . . . . . . . . . . . . . . . . Recyclers Shooed 18 | 1 1 . 1 . . . 1 2 2 . . . . 1 . . . . . . . . . . 2 . . . . . 1 3 2 1 Parts Field Recycled . | . . . . . . . . . . . . . . . . . . . . . . . . . . . . . . . . . . . Retrieved Matter . | . . . . . . . . . . . . . . . . . . . . . . . . . . . . . . . . . . . Parts Self-Destructed 79 | . . . . . . . . . . 11 1 . 3 . 14 5 . . 15 . . 4 2 24 . . . . . . . . . . Prevented 1 | . . . . . . . . . . . 1 . . . . . . . . . . . . . . . . . . . . . . . Kills | -11 -10 -10 -9 -9 -9 -8 -8 -8 -7 -7 -7 -7 -6 -6 -6 -6 -6 -6 -5 -5 -5 -5 -5 -4 -4 -4 -4 -4 -4 -4 -4 -3 -2 -1 ------- Run | Jun Mat Min Mat Min Exi Min Mat Sto Fac Low Low Dat Pro Fac Low Low Zio Dee Pro Fac Upp Upp Zhi Pro Fac Was Fac Ext Cet Arc Hub Res Res Acc Combat Hostiles Destroyed 316 | . 7 6 19 19 . 12 5 27 3 6 5 4 3 19 11 . . 9 16 2 . 5 . 8 12 6 4 28 7 1 17 12 31 12 Guns 217 | . 7 3 16 12 . 6 5 17 3 5 3 4 2 10 8 . . 2 9 2 . 2 . 8 8 6 4 18 5 1 7 12 24 8 Cannons 29 | . . 3 2 3 . . . . . . . . . 3 2 . . . . . . . . . . . . . . . 7 . 6 3 AOE 59 | . . . . 4 . 6 . 10 . 1 2 . . 3 . . . 7 7 . . 3 . . 4 . . 8 2 . 2 . . . Classes Destroyed 27 | 2 2 1 4 2 . . 1 3 1 . 1 . 2 1 . . . 1 1 . 1 . . . . 1 . 1 . . 1 1 . . Worker 17 | . . . . 1 . . . 3 2 . . . . 2 . . . . . 1 . . . . 1 . . 2 . . 1 . 2 2 Builder 16 | . . . 2 . . . . 1 . . . . . 1 . . . . . . . . . . 2 . . 2 . . 2 3 3 . Tunneler 6 | 1 . . . 2 . . . . . . . . . 1 . . . . . . . . . . . . 1 . . . 1 . . . Hauler 14 | . . . 3 . . . 4 6 . . . . . 1 . . . . . . . . . . . . . . . . . . . . Recycler 18 | 1 1 . . . . . . 4 2 . . . . 1 . . . . . . . . . . 2 . . 1 . . 2 1 . 3 Mechanic 2 | . . . . . . . . 2 . . . . . . . . . . . . . . . . . . . . . . . . . . Operator 11 | . . . . . . . . . . . . . . 1 . . . . . . . . . . . . . . . 9 . 1 . . Drone 2 | . . . . . . . . . . . . . . . . . . . 2 . . . . . . . . . . . . . . . Watcher 16 | . . . 2 . . . 1 2 1 . . . . 2 . . . . . 1 . . . . 1 . 1 . . . . 4 . 1 Swarmer 66 | . 3 . 3 6 . 12 . . . . . . . 4 3 . . . 5 . . . . 5 4 . 2 9 . . . . 10 . Saboteur 1 | . . . . . . . . . . . . . . . . . . . . . . . . . . . . . . . . 1 . . Grunt 84 | . 4 . 10 9 . . 3 10 . 5 4 . . 4 6 . . . 8 . . 3 . . . . . 8 2 . 1 . 6 1 Brawler 10 | . . . . . . . . 3 . 1 1 . . 1 1 . . . . . . . . . . . . 2 . . . . 1 . Duelist 8 | . . . . 2 . . . 2 . . . . . . . . . . . . . 1 . . 1 . . 1 . . . . 1 . Protector 1 | . . . . . . . . . . . . . . . . . . . . . . . . . . . . . . . 1 . . . Sentry 38 | . . . 6 . . . 1 11 2 . . . . 2 . . . . . 2 . 1 . . 3 . . 5 . 1 1 3 . . Specialist 2 | . . . . . . . . . . . . . . . . . . . . . . . . . . . . 1 . . 1 . . . Hunter 15 | . . . . . . . . 1 . . . . 2 4 1 . . . . . . . . 2 . . . . . . 5 . . . Programmer 46 | . . . . . . . . . 1 . . . . 4 . . . . . . . . . . 4 . 2 1 1 . 2 7 13 11 Heavy 3 | . . . . . . . 1 . . . . . . . . . . . . . . . . . . . . . . . 1 1 . . Behemoth 5 | . . . . . . . . . . . . . 1 . . . . . 1 . . . . 1 . . . 1 . . . . . 1 Compactor 6 | . . . . . . . . . . . . . . . . . . . . . . . . . . 6 . . . . . . . . Cetus Guard 4 | . . . . . . . . . . . . . . . . . . . . . . . . . . . . . 4 . . . . . Enhanced Grunt 5 | . . . . . . . . . . . . 4 . . . . . . . . . . 1 . . . . . . . . . . . Lightning 5 | . . . . . . . . . . . . . . . . . . . . . . . . . . . . . . . 5 . . . Z-Technician 5 | . . . . . . . . . . . . . . . . . . 5 . . . . . . . . . . . . . . . . Z-Light 8 | . . . . . . . . . . . . . . . . . . 8 . . . . . . . . . . . . . . . . Samaritan 2 | . . . . . . . . . . . . . . . . . . . . . 2 . . . . . . . . . . . . . Tinkerer 1 | . . . . . . . . . . . . . 1 . . . . . . . . . . . . . . . . . . . . . Assembled 7 | . . 5 . 2 . . . . . . . . . . . . . . . . . . . . . . . . . . . . . . Wasp 1 | . . . . . . . . . . . . . . . . . . . . . . . . . . 1 . . . . . . . . Thug 2 | . . . . . . . . 1 . . . . . . . . . . . . 1 . . . . . . . . . . . . . Savage 1 | . . . . . . . . . . . 1 . . . . . . . . . . . . . . . . . . . . . . . Butcher 1 | . . . . . . . . . . . . . . . . . . . . . 1 . . . . . . . . . . . . . Mutant 2 | . . . . . . . . . . . 1 . . . . . . . . . 1 . . . . . . . . . . . . . Best Kill Streak 12 | 1 3 1 6 6 . 4 3 11 3 3 3 1 2 4 3 . . 6 5 2 . 4 . 4 8 3 3 11 3 6 12 3 7 4 Combat Bots Only 10 | . 3 1 3 4 . 4 3 8 2 3 3 1 2 4 3 . . 6 5 2 . 4 . 4 5 3 2 10 3 1 9 3 7 4 Max Kills in Single Turn 5 | 1 1 1 2 2 . 3 1 5 1 1 1 1 1 3 1 . . 3 4 2 1 2 1 2 4 1 1 4 1 1 2 2 2 2 Gunslinging 1 | . . . . . . . . . . . . . . . . . . . . . . . . 1 . . . . . . . . 1 . Exploded 4 | . . . . 2 . 3 . 3 . 1 1 . . 3 . . . 3 4 . . 2 . . 4 . . 4 1 . 1 . . . Melee . | . . . . . . . . . . . . . . . . . . . . . . . . . . . . . . . . . . . Uniques/NPCs Destroyed 4 | . . 1 . . . . . . . . . 1 . . . . . 1 . . . . . . . . . . 1 . . . . . YI-UF0 (-10/Mines) Data Miner (-7/Data Miner) Z-Imprinter (-6/Deep Caves) A7 (-4/Cetus) Combat | -11 -10 -10 -9 -9 -9 -8 -8 -8 -7 -7 -7 -7 -6 -6 -6 -6 -6 -6 -5 -5 -5 -5 -5 -4 -4 -4 -4 -4 -4 -4 -4 -3 -2 -1 -------- Run | Jun Mat Min Mat Min Exi Min Mat Sto Fac Low Low Dat Pro Fac Low Low Zio Dee Pro Fac Upp Upp Zhi Pro Fac Was Fac Ext Cet Arc Hub Res Res Acc Damage Taken 25840 | . 339 401 516 561 . 70 481 526 306 242 46 2244 839 1523 932 . . 929 1246 70 . 134 . 861 505 271 32 1638 1022 50 3594 1592 3380 1490 Core 2256 | . 116 61 95 66 . . 66 26 46 32 16 243 38 90 154 . . 34 97 . . . . 66 15 . . 165 128 . 224 76 119 283 Absorbed by Shields 4646 | . . . . . . . . . . 9 . . . 303 . . . . . . . . . . 151 . . 295 766 48 785 867 279 1143 Reduced by Siege Mode 1041 | . . . . . . . . . . . . . . . . . . . . . . . . 40 8 22 . . 60 . 90 127 591 103 Redirected to Shielding 343 | . . . . . . . . . . . . . . . . . . . 207 . . . . 136 . . . . . . . . . . Ignored by Resistances 2417 | . . . . . . . . 4 . . . . . . . . . . . . . . . . . . 153 . . . 2260 . . . Regen/Repaired (Parts) 1531 | . . . . . . . . 118 . . . . . 150 . . . . . . . . . . . . . . . . . . 980 283 Core Remaining (%) 71 | 100 . 29 . . . 59 . 83 . . . . 46 . . . . . 55 . . . . 93 . . . . . . 53 94 91 82 Volleys Fired 1273 | 5 28 23 45 61 . 20 43 87 13 13 16 37 16 117 41 12 . 23 48 13 10 8 14 18 39 50 17 56 18 59 70 92 106 55 Largest 5 | 2 2 2 3 3 . 3 3 3 3 3 3 3 3 3 3 1 . 3 3 4 4 4 4 4 4 4 4 4 4 4 4 4 4 5 Hottest 516 | 90 115 125 196 168 . 100 100 100 75 75 75 202 202 241 216 90 . 288 90 90 80 80 80 80 90 352 352 329 481 329 344 376 402 516 Shots Fired 3182 | 10 56 39 127 117 . 34 107 230 33 35 42 106 49 233 92 13 . 45 130 40 40 20 43 72 144 145 38 205 58 63 170 213 278 155 Gun 2652 | 10 56 26 85 75 . 21 96 212 33 33 39 104 49 151 71 1 . 26 123 36 40 16 43 72 140 145 38 200 55 63 129 167 201 96 Cannon 412 | . . 13 42 9 . . . . . . . 2 . 81 21 12 . 8 3 4 . . . . 2 . . 1 . . 33 46 77 58 Launcher 55 | . . . . 4 . 3 . 7 . 2 3 . . 1 . . . 11 4 . . 4 . . 1 . . 4 3 . 8 . . . Special 63 | . . . . 29 . 10 11 11 . . . . . . . . . . . . . . . . 1 . . . . . . . . 1 Kinetic 1135 | . . . . 20 . 21 96 212 33 33 39 89 . . . . . 2 123 36 40 16 43 72 140 87 . . . . 33 . . . Thermal 1953 | 10 56 33 127 93 . 10 11 11 . . . 17 49 232 92 13 . 32 3 4 . . . . 2 58 38 201 55 63 129 213 260 141 Explosive 55 | . . . . 4 . 3 . 7 . 2 3 . . 1 . . . 11 4 . . 4 . . 1 . . 4 3 . 8 . . . Electromagnetic 37 | . . 6 . . . . . . . . . . . . . . . . . . . . . . . . . . . . . . 18 13 Robot Hit Streak 59 | 2 5 3 8 16 . 2 15 20 8 12 20 13 14 16 14 . . 11 23 8 7 8 23 18 30 59 7 17 18 12 14 16 24 21 Robot Miss Streak 7 | 2 4 3 3 3 . 4 6 3 1 1 1 4 2 7 4 . . 4 4 5 2 2 3 2 3 1 2 3 3 7 6 4 3 1 Penetration Max . | . . . . . . . . . . . . . . . . . . . . . . . . . . . . . . . . . . . Secondary Targets 42 | . 1 . 1 . . 2 1 1 . 3 . 2 . . 2 . . . 1 . . . . 4 . 3 . 5 2 . 4 1 7 2 Max Gunslinging Chain 1 | . 1 . 1 . . 1 1 1 . 1 . 1 . . 1 . . . 1 . . . . 1 . 1 . 1 1 . 1 1 1 1 Autonomous 33 | . . . . . . . . . . . . . . . . . . . . . . . . . . . . . . . 33 . . . Shots Hit Robots 1987 | 6 30 16 75 57 . 11 64 153 27 26 34 61 41 133 56 . . 25 89 20 24 12 27 57 109 119 15 142 43 35 108 115 164 93 Core Hits 892 | 3 15 9 30 27 . 12 22 84 13 12 14 25 14 59 25 . . 27 38 10 11 12 8 21 42 20 7 82 26 21 60 43 65 35 Critical Kills 11 | . . . . . . . . 2 1 . . 1 . . . . . . . . . . . . . . . . . 1 . . 5 1 Critical Parts Destroyed 4 | . . . . . . . . . 1 . . . . . . . . . . . . . . . . . . . . . 1 . 2 . Critical Strikes 51 | . 2 2 4 3 . . . 2 2 . . 1 1 11 2 . . 1 . . . . . . . 2 1 2 . 1 4 . 9 1 Burn 31 | . 2 2 4 3 . . . . . . . . 1 11 2 . . 1 . . . . . . . 2 1 2 . . . . . . Destroy 15 | . . . . . . . . 2 2 . . 1 . . . . . . . . . . . . . . . . . 1 1 . 7 1 Blast 3 | . . . . . . . . . . . . . . . . . . . . . . . . . . . . . . . 3 . . . Corrupt 2 | . . . . . . . . . . . . . . . . . . . . . . . . . . . . . . . . . 2 . Melee Attacks 88 | . . . . . . . . 1 18 . 12 30 . 2 . . 10 5 . . . 2 . . . . . . . . . . 8 . Impact 54 | . . . . . . . . 1 18 . 12 4 . 2 . . 10 5 . . . 2 . . . . . . . . . . . . Slashing 34 | . . . . . . . . . . . . 26 . . . . . . . . . . . . . . . . . . . . 8 . Piercing . | . . . . . . . . . . . . . . . . . . . . . . . . . . . . . . . . . . . Sneak Attacks 10 | . . . . . . . . . 2 . . 1 . . . . . 5 . . . . . . . . . . . . . . 2 . Combat Hostiles . | . . . . . . . . . . . . . . . . . . . . . . . . . . . . . . . . . . . Follow-up Attacks . | . . . . . . . . . . . . . . . . . . . . . . . . . . . . . . . . . . . Damage Inflicted 60846 | 89 364 262 1449 1289 . 494 1030 4287 682 676 914 1173 873 3144 1081 13 . 2055 2762 458 613 823 602 1021 2686 2739 511 5869 2043 1069 6117 3742 5898 4018 Guns 43345 | 84 364 162 938 850 . 180 992 2480 441 404 557 1059 873 2273 1001 . . 328 1751 443 565 179 602 1021 2380 2739 496 4519 1354 1069 2527 3411 4871 2432 Cannons 5576 | . . 100 483 170 . . . . . . . . . 664 80 . . 35 . . . . . . . . . . . . 1957 265 891 931 Explosions 9759 | . . . . 228 . 276 . 1722 . 272 357 . . 141 . . . 1278 1011 . . 644 . . 269 . . 1349 689 . 1523 . . . Melee 853 | . . . . . . . . . 198 . . 114 . . . . . 414 . . . . . . . . . . . . . . 127 . Ramming 1313 | 5 . . 28 41 . 38 38 85 43 . . . . 66 . 13 . . . 15 48 . . . 37 . 15 1 . . 110 66 9 655 Kinetic 17019 | . . . . 293 . 180 992 2480 441 404 557 1059 . . . . . 38 1751 443 565 179 602 1021 2380 1677 . . . . 1957 . . . Thermal 31326 | 84 364 219 1421 727 . . . . . . . . 873 2937 1081 . . 325 . . . . . . . 1062 496 4519 1354 1069 2527 3676 5451 3141 Explosive 9759 | . . . . 228 . 276 . 1722 . 272 357 . . 141 . . . 1278 1011 . . 644 . . 269 . . 1349 689 . 1523 . . . Electromagnetic 576 | . . 43 . . . . . . . . . . . . . . . . . . . . . . . . . . . . . . 311 222 Impact 612 | . . . . . . . . . 198 . . . . . . . . 414 . . . . . . . . . . . . . . . . Slashing 241 | . . . . . . . . . . . . 114 . . . . . . . . . . . . . . . . . . . . 127 . Piercing . | . . . . . . . . . . . . . . . . . . . . . . . . . . . . . . . . . . . Highest Corruption 48 | . . . . . . . . . . 1 1 1 1 2 2 2 2 . . . . . . . 3 20 20 21 29 29 48 21 9 25 Average Corruption 8 | . . . . . . . . . . 1 1 1 1 1 2 2 2 . . . . . . . 1 18 20 20 27 20 12 9 5 11 Corruption Purged 19 | . . . . . . . . . . . . . . . . . . . . . . . . . . . . . . 19 . . . . Corruption Blocked . | . . . . . . . . . . . . . . . . . . . . . . . . . . . . . . . . . . . Effects 454 | . . . . . . . . . . 8 20 7 8 6 14 6 2 . . . . . . . 2 54 35 72 26 31 47 61 29 26 Message Errors 111 | . . . . . . . . . . 1 8 2 3 1 3 . 1 . . . . . . . 1 11 7 15 6 4 15 16 10 7 Matter Fused 101 | . . . . . . . . . . 1 3 3 1 4 3 . 1 . . . . . . . . 18 9 10 6 12 11 10 3 6 Heat Flow Errors 46 | . . . . . . . . . . 3 5 1 1 . 3 . . . . . . . . . . 3 2 8 2 2 3 7 4 2 Energy Discharges 54 | . . . . . . . . . . 1 2 . 1 . 1 1 . . . . . . . . . 6 5 12 4 4 2 7 6 2 Parts Rejected 4 | . . . . . . . . . . . . . . . . . . . . . . . . . . 1 . 1 . 1 1 . . . Parts Fused 6 | . . . . . . . . . . . 1 1 1 . . . . . . . . . . . . 1 . . . . 1 . 1 . Data Loss (minor) 54 | . . . . . . . . . . 2 1 . . . 2 3 . . . . . . . . 1 6 8 9 4 2 5 6 2 3 Data Loss (major) 16 | . . . . . . . . . . . . . . . 1 . . . . . . . . . . 2 1 1 1 3 1 3 2 1 Misfires 20 | . . . . . . . . . . . . . 1 . 1 1 . . . . . . . . . 1 1 6 . 2 2 4 . 1 Alerts 6 | . . . . . . . . . . . . . . . . 1 . . . . . . . . . . . 2 . . 1 2 . . Misdirections 3 | . . . . . . . . . . . . . . . . . . . . . . . . . . . 1 1 . . 1 . . . Weapon Failures 33 | . . . . . . . . . . . . . . 1 . . . . . . . . . . . 5 1 7 3 1 4 6 1 4 Overload Shots 20 | . . . . . . . . . . . . . . . . . . 7 . . . . . . . . . . 4 1 8 . . . Effects 2 | . . . . . . . . . . . . . . . . . . 1 . . . . . . . . . . . . 1 . . . Heat Surge 2 | . . . . . . . . . . . . . . . . . . 1 . . . . . . . . . . . . 1 . . . Overflow Damage 938 | . . . 5 8 . 13 . 4 93 . . 54 . 35 . 7 . 318 2 . 34 . . . . . . 65 21 . 122 15 125 17 Projectiles 225 | . . . 5 . . . . . . . . . . 35 . . . . . . . . . . . . . . . . 73 . 95 17 Explosions 252 | . . . . 8 . 13 . . . . . . . . . . . 97 2 . . . . . . . . 65 21 . 46 . . . Melee 461 | . . . . . . . . 4 93 . . 54 . . . 7 . 221 . . 34 . . . . . . . . . 3 15 30 . Knockbacks 30 | . . . . 4 . . 1 . . . . . . 1 . . . 1 . . . . . . . . . . . . 22 1 . . Impact 4 | . . . . . . . 1 . . . . . . 1 . . . 1 . . . . . . . . . . . . . 1 . . Kinetic 23 | . . . . 3 . . . . . . . . . . . . . . . . . . . . . . . . . . 20 . . . Secondary 3 | . . . . 1 . . . . . . . . . . . . . . . . . . . . . . . . . . 2 . . . Self-Inflicted Damage 763 | . . . . 23 . . . . . 15 . . . . . . . 55 12 . . . . . . . . 69 . . 21 . . 568 Shots 9 | . . . . 1 . . . . . 1 . . . . . . . 2 1 . . . . . . . . 1 . . 3 . . . Rammed 48 | 1 . . 3 5 . 4 3 8 4 . . . . . . 1 . . . . . . . . 2 . 1 1 . . 7 3 1 4 Targets Rammed 66 | 1 . . 5 7 . 4 3 8 5 . . . . 5 . 1 . . . 1 4 . . . 2 . 2 1 . . 7 4 1 5 Kicked 10 | . . . . . . . . . . . . . . 5 . . . . . 1 4 . . . . . . . . . . . . . Crushed 8 | . . . 2 2 . . . . 1 . . . . . . . . . . . . . . . . . 1 . . . . 1 . 1 Highest Temperature 596 | 90 240 225 337 306 . . 15 201 10 264 204 192 226 294 273 23 . 304 68 2 20 4 14 62 11 476 180 248 290 214 596 467 382 202 Average Temperature 93 | 41 97 68 110 82 . . 6 37 4 121 67 75 78 69 99 15 . 141 23 1 15 2 9 14 3 116 44 77 92 75 169 121 108 91 Received Heat Transfer 3170 | . 174 120 231 54 . . 99 180 66 152 45 . 48 212 207 . . 272 309 . . 36 . 18 79 . . 207 161 . 184 66 175 75 Effects 15 | . . . 1 . . . . . . . . . . . . . . 1 . . . . . . . 1 . . . . 8 4 . . Shutdowns 1 | . . . . . . . . . . . . . . . . . . . . . . . . . . . . . . . 1 . . . Energy Bleed 4 | . . . . . . . . . . . . . . . . . . 1 . . . . . . . 1 . . . . 2 . . . Interference 6 | . . . . . . . . . . . . . . . . . . . . . . . . . . . . . . . 3 3 . . Matter Decay 1 | . . . 1 . . . . . . . . . . . . . . . . . . . . . . . . . . . . . . . Short Circuit 1 | . . . . . . . . . . . . . . . . . . . . . . . . . . . . . . . . 1 . . Damage (major) 2 | . . . . . . . . . . . . . . . . . . . . . . . . . . . . . . . 2 . . . Siege Activations 26 | . . . . . . . . . . . . . . . . . . . . . . . . 1 1 3 . . 2 1 2 6 7 3 Total Turns 644 | . . . . . . . . . . . . . . . . . . . . . . . . 10 4 120 . . 40 63 87 101 168 51 Longest Duration 63 | . . . . . . . . . . . . . . . . . . . . . . . . 10 4 55 . . 25 63 46 29 46 29 Robots Corrupted . | . . . . . . . . . . . . . . . . . . . . . . . . . . . . . . . . . . . Combat Hostiles . | . . . . . . . . . . . . . . . . . . . . . . . . . . . . . . . . . . . Parts Fried 16 | . . . . . . . . . . . 1 . . . . . . 8 . . . . . . . 1 . 1 . . . 2 1 2 Impact Corruptions 17 | . . . . . . . . 1 1 . . . . . . 1 . 7 . . 5 . . . . . . . . . 1 1 . . Robots Melted 12 | . . . 1 . . . . . . . . . 1 4 1 . . . . . . . . . . . . 2 . . 1 . 1 1 Combat Hostiles 11 | . . . 1 . . . . . . . . . 1 3 1 . . . . . . . . . . . . 2 . . 1 . 1 1 Parts Melted 114 | . 3 . 8 3 . . . . . . . . 7 22 7 . . . . . . . . . . . 2 11 2 2 7 11 18 11 Heat Transferred 43779 | 223 1126 629 3219 1776 . . . . . . . . 1960 5572 2378 . . 324 . . . . . . . 1517 629 5680 1587 1332 2991 4070 5772 2994 Parts Sabotaged . | . . . . . . . . . . . . . . . . . . . . . . . . . . . . . . . . . . . Parts Stolen . | . . . . . . . . . . . . . . . . . . . . . . . . . . . . . . . . . . . Parts Stripped . | . . . . . . . . . . . . . . . . . . . . . . . . . . . . . . . . . . . Power Chain Reactions . | . . . . . . . . . . . . . . . . . . . . . . . . . . . . . . . . . . . Missiles Intercepted . | . . . . . . . . . . . . . . . . . . . . . . . . . . . . . . . . . . . Alert | -11 -10 -10 -9 -9 -9 -8 -8 -8 -7 -7 -7 -7 -6 -6 -6 -6 -6 -6 -5 -5 -5 -5 -5 -4 -4 -4 -4 -4 -4 -4 -4 -3 -2 -1 ------- Run | Jun Mat Min Mat Min Exi Min Mat Sto Fac Low Low Dat Pro Fac Low Low Zio Dee Pro Fac Upp Upp Zhi Pro Fac Was Fac Ext Cet Arc Hub Res Res Acc Peak Influence 1281 | 10 211 82 358 341 . 298 102 754 341 . . . . 195 . . . . . 691 . . . . 1026 359 193 1281 1047 660 1048 631 699 471 Initial 621 | . 6 82 . 95 . . 1 . 314 . . . . . . . . . . 450 . . . . 31 359 7 21 621 380 164 549 255 295 Average 244 | 7 80 22 140 176 . 88 38 251 140 . . . . 59 . . . . . 556 . . . . 288 179 35 467 850 527 617 377 327 324 Maximum Alert Level 4 | . 1 . 1 1 . 1 . 3 1 . . . . . . . . . . 2 . . . . 3 1 . 4 3 2 3 2 2 2 Low Security (%) 52 | 100 93 100 70 56 . 84 100 42 63 . . . . 100 . . . . . . . . . . 60 64 100 50 . . 8 6 7 . Level 1 26 | . 6 . 29 43 . 15 . 36 36 . . . . . . . . . . . . . . . 10 35 . 9 . 2 11 56 70 84 Level 2 13 | . . . . . . . . 12 . . . . . . . . . . . 100 . . . . 12 . . 3 35 97 31 37 22 15 Level 3 5 | . . . . . . . . 8 . . . . . . . . . . . . . . . . 16 . . 18 64 . 48 . . . Level 4 1 | . . . . . . . . . . . . . . . . . . . . . . . . . . . . 18 . . . . . . Level 5 . | . . . . . . . . . . . . . . . . . . . . . . . . . . . . . . . . . . . High Security . | . . . . . . . . . . . . . . . . . . . . . . . . . . . . . . . . . . . Max Security . | . . . . . . . . . . . . . . . . . . . . . . . . . . . . . . . . . . . Squads Dispatched 65 | . 1 1 3 . . . 2 7 2 . . . . 6 . . . . . . . . . . 7 . 1 7 . . 11 5 7 5 Investigation 11 | . . 1 2 . . . 1 2 . . . . . 1 . . . . . . . . . . 1 . . 1 . . . . 1 1 Extermination 19 | . . . . . . . . . 1 . . . . 3 . . . . . . . . . . 2 . 1 . . . 1 2 5 4 Reinforcement 18 | . 1 . 1 . . . 1 . 1 . . . . 2 . . . . . . . . . . . . . 4 . . 6 2 . . Assault 8 | . . . . . . . . 2 . . . . . . . . . . . . . . . . 1 . . 2 . . 1 1 1 . Garrison 9 | . . . . . . . . 3 . . . . . . . . . . . . . . . . 3 . . . . . 3 . . . Intercept . | . . . . . . . . . . . . . . . . . . . . . . . . . . . . . . . . . . . Searches Triggered 1 | . . . . . . . . . . . . . . . . . . . . 1 . . . . . . . . . . . . . . Construction Impeded 3 | . . . . . . . . . . . . . . . . . . . . . . . . . . . . 2 . . 1 . . . Haulers Reinforced 2 | . . . . . . . . . . . . . . 2 . . . . . . . . . . . . . . . . . . . . Active Scanning Responses . | . . . . . . . . . . . . . . . . . . . . . . . . . . . . . . . . . . . Cargo Convoy Interrupts 1 | . . . . . . . . . . . . . . 1 . . . . . . . . . . . . . . . . . . . . Stealth | -11 -10 -10 -9 -9 -9 -8 -8 -8 -7 -7 -7 -7 -6 -6 -6 -6 -6 -6 -5 -5 -5 -5 -5 -4 -4 -4 -4 -4 -4 -4 -4 -3 -2 -1 --------- Run | Jun Mat Min Mat Min Exi Min Mat Sto Fac Low Low Dat Pro Fac Low Low Zio Dee Pro Fac Upp Upp Zhi Pro Fac Was Fac Ext Cet Arc Hub Res Res Acc Distress Signals 24 | . 1 . 2 1 . . 1 2 . . . . . 2 . . . . . . . . . . . . . 3 2 . 6 3 1 . Communications Jammed 154 | . . . . . . . . . . . . . . 1 . . . . . . . . . . . . . . . . 101 10 42 . Distress Signals 137 | . . . . . . . . . . . . . . . . . . . . . . . . . . . . . . . 90 6 41 . Times Spotted 544 | . 14 9 32 23 . 11 12 44 5 6 5 4 3 22 12 . . 12 18 3 . 5 . 8 19 6 7 65 16 37 55 34 41 16 Peak Tracking Total 12 | . 6 3 5 4 . 4 3 8 3 3 3 3 2 5 4 . . 4 5 2 . 4 . 5 5 4 4 11 5 2 12 5 8 3 Tactical Retreats 14 | . . 1 1 4 . 1 . . . . 1 . . . 1 . . . . 1 . . . 1 . . . . . . 1 1 1 . Traps | -11 -10 -10 -9 -9 -9 -8 -8 -8 -7 -7 -7 -7 -6 -6 -6 -6 -6 -6 -5 -5 -5 -5 -5 -4 -4 -4 -4 -4 -4 -4 -4 -3 -2 -1 ------- Run | Jun Mat Min Mat Min Exi Min Mat Sto Fac Low Low Dat Pro Fac Low Low Zio Dee Pro Fac Upp Upp Zhi Pro Fac Was Fac Ext Cet Arc Hub Res Res Acc Traps Triggered 4 | . . . . . . . . 1 1 . . . . . . . . . . . . . . . 1 . . . . . . . 1 . Indirectly . | . . . . . . . . . . . . . . . . . . . . . . . . . . . . . . . . . . . Trap Hack Attempts . | . . . . . . . . . . . . . . . . . . . . . . . . . . . . . . . . . . . Triggered . | . . . . . . . . . . . . . . . . . . . . . . . . . . . . . . . . . . . Disarmed . | . . . . . . . . . . . . . . . . . . . . . . . . . . . . . . . . . . . Reprogrammed . | . . . . . . . . . . . . . . . . . . . . . . . . . . . . . . . . . . . Reused . | . . . . . . . . . . . . . . . . . . . . . . . . . . . . . . . . . . . Traps Extracted . | . . . . . . . . . . . . . . . . . . . . . . . . . . . . . . . . . . . Installed . | . . . . . . . . . . . . . . . . . . . . . . . . . . . . . . . . . . . Triggered 5 | . . . . . . . . . . . 3 . . 1 . . . . . . . . . . . . . . . . 1 . . . Machines | -11 -10 -10 -9 -9 -9 -8 -8 -8 -7 -7 -7 -7 -6 -6 -6 -6 -6 -6 -5 -5 -5 -5 -5 -4 -4 -4 -4 -4 -4 -4 -4 -3 -2 -1 ---------- Run | Jun Mat Min Mat Min Exi Min Mat Sto Fac Low Low Dat Pro Fac Low Low Zio Dee Pro Fac Upp Upp Zhi Pro Fac Was Fac Ext Cet Arc Hub Res Res Acc Machines Disabled 49 | . . . 1 4 . 1 . 3 . . . 1 . 2 . . . . . . . . 1 . 16 . 1 7 3 2 1 . 3 3 Max in Single Turn 2 | . . . 1 2 . 1 . 1 . . . 1 . 1 . . . . . . . . 1 . 2 . 1 1 . 1 1 . 1 1 Garrison Access 5 | . . . . . . . . . 2 . . . . . . . . . . . . . . . 1 . . . . . 1 1 . . Network Hub 1 | . . . . . . . . . . . . . . . . . . . . . . . . . . . . . . . 1 . . . Energy Cycler 2 | . . . . . . . . . . . . . . . . . . . . . . . . . . . . 2 . . . . . . Machines Repaired . | . . . . . . . . . . . . . . . . . . . . . . . . . . . . . . . . . . . Machines Sabotaged . | . . . . . . . . . . . . . . . . . . . . . . . . . . . . . . . . . . . Overloaded Fab Kills . | . . . . . . . . . . . . . . . . . . . . . . . . . . . . . . . . . . . Hacking | -11 -10 -10 -9 -9 -9 -8 -8 -8 -7 -7 -7 -7 -6 -6 -6 -6 -6 -6 -5 -5 -5 -5 -5 -4 -4 -4 -4 -4 -4 -4 -4 -3 -2 -1 --------- Run | Jun Mat Min Mat Min Exi Min Mat Sto Fac Low Low Dat Pro Fac Low Low Zio Dee Pro Fac Upp Upp Zhi Pro Fac Was Fac Ext Cet Arc Hub Res Res Acc Machines Accessed 98 | . . 2 6 1 1 . 3 12 5 . 1 4 . 9 . . 1 . . 6 . 1 4 . 3 . 3 6 . . 5 9 10 6 Terminals 53 | . . . 3 1 . . 2 9 2 . . . . 5 . . . . . 4 . . . . 1 . 2 6 . . 4 4 5 5 Fabricators 8 | . . . . . . . . . . . . . . 1 . . . . . 1 . . . . 2 . 1 . . . . 2 1 . Repair Stations 6 | . . . . . . . . 1 . . . . . 2 . . . . . . . . . . . . . . . . . . 2 1 Recycling Units 6 | . . . 2 . . . 1 1 1 . . . . . . . . . . . . . . . . . . . . . . 1 . . Scanalyzers 2 | . . . 1 . . . . . . . . . . . . . . . . . . . . . . . . . . . . 1 . . Garrison Access 9 | . . . . . . . . 1 2 . . . . 1 . . . . . 1 . . . . . . . . . . 1 1 2 . Total Hacks 317 | . . 2 23 2 1 . 11 38 15 . 1 32 . 20 . . 8 . . 27 . 1 17 . 10 . 13 17 . . 7 37 24 11 Successful 164 | . . 2 13 . 1 . 3 21 6 . 1 32 . 5 . . 8 . . 12 . 1 17 . 3 . 5 5 . . 1 18 9 1 Failed 151 | . . . 9 2 . . 7 17 9 . . . . 15 . . . . . 15 . . . . 7 . 8 12 . . 6 19 15 10 Catastrophic 36 | . . . 2 1 . . 1 3 1 . . . . 2 . . . . . 4 . . . . 2 . 1 1 . . 2 5 8 3 Database Lockouts 2 | . . . 1 . . . 1 . . . . . . . . . . . . . . . . . . . . . . . . . . . Manual 78 | . . . 13 2 1 . 6 12 . . . . . 3 . . 1 . . 11 . . . . 3 . 1 4 1 . 4 9 7 . Terminals 168 | . . . 15 2 . . 9 29 9 . . . . 13 . . . . . 23 . . . . 2 . 7 17 . . 6 18 9 9 Fabricators 28 | . . . . . . . . . . . . . . 2 . . . . . 2 . . . . 8 . 6 . . . . 5 5 . Repair Stations 14 | . . . . . . . . 2 . . . . . 3 . . . . . . . . . . . . . . . . . . 7 2 Recycling Units 17 | . . . 7 . . . 2 3 1 . . . . . . . . . . . . . . . . . . . . . . 4 . . Scanalyzers 8 | . . . 1 . . . . . . . . . . . . . . . . . . . . . . . . . . . . 7 . . Garrison Access 20 | . . . . . . . . 4 5 . . . . 2 . . . . . 2 . . . . . . . . . . 1 3 3 . Terminal Hacks 118 | . . 2 6 . 1 . 3 16 3 . 1 32 . 3 . . 8 . . 10 . 1 17 . 1 . 2 5 . . . 5 2 . Record 17 | . . . 1 . . . . . . . . 11 . . . . . . . . . . 5 . . . . . . . . . . . Part Schematic 25 | . . . . . . . . 1 . . . 12 . . . . 8 . . . . . 4 . . . . . . . . . . . Robot Schematic 6 | . . . . . . . . . . . . 6 . . . . . . . . . . . . . . . . . . . . . . Robot Analysis 12 | . . . 2 . . . 2 3 . . . . . 1 . . . . . . . . 4 . . . . . . . . . . . Prototype ID Bank 10 | . . . . . . . . 2 . . . 3 . . . . . . . 1 . . 4 . . . . . . . . . . . Open Door 10 | . . 2 . . . . . 3 . . 1 . . . . . . . . . . 1 . . . . 1 2 . . . . . . Level Access Points 1 | . . . . . . . . . . . . . . . . . . . . 1 . . . . . . . . . . . . . . Branch Access Points 2 | . . . . . . . . . . . . . . . . . . . . 1 . . . . . . . . . . . . 1 . Emergency Access Points 1 | . . . . . . . . . . . . . . . . . . . . 1 . . . . . . . . . . . . . . Terminal Index 1 | . . . . . . . . 1 . . . . . . . . . . . . . . . . . . . . . . . . . . Fabricator Index 1 | . . . . . . . . . . . . . . . . . . . . . . . . . 1 . . . . . . . . . Recycling Unit Index 1 | . . . . . . . . . . . . . . . . . . . . 1 . . . . . . . . . . . . . . Alert Level 3 | . . . . . . . . 1 . . . . . . . . . . . . . . . . . . . 1 . . . 1 . . Unreport Threat 7 | . . . . . . . . . 2 . . . . . . . . . . . . . . . . . 1 1 . . . 2 1 . Locate Traps 9 | . . . 2 . . . . 2 1 . . . . . . . . . . 2 . . . . . . . 1 . . . 1 . . Recall Reinforcements 1 | . . . . . . . . . . . . . . . . . . . . . . . . . . . . . . . . 1 . . Hauler Manifests 5 | . . . 1 . . . 1 1 . . . . . 1 . . . . . 1 . . . . . . . . . . . . . . Zone Layout 5 | . . . . . . . . 2 . . . . . 1 . . . . . 2 . . . . . . . . . . . . . . Derelict Proto ID Bank 1 | . . . . . 1 . . . . . . . . . . . . . . . . . . . . . . . . . . . . . Fabricator Hacks 7 | . . . . . . . . . . . . . . . . . . . . . . . . . 1 . 3 . . . . 2 1 . Network Status 1 | . . . . . . . . . . . . . . . . . . . . . . . . . . . . . . . . 1 . . Load Schematic 3 | . . . . . . . . . . . . . . . . . . . . . . . . . 1 . 1 . . . . . 1 . Build 3 | . . . . . . . . . . . . . . . . . . . . . . . . . . . 2 . . . . 1 . . Repair Station Hacks 10 | . . . . . . . . 2 . . . . . 2 . . . . . . . . . . . . . . . . . . 5 1 Scan Component 6 | . . . . . . . . 1 . . . . . 1 . . . . . . . . . . . . . . . . . . 3 1 Repair 4 | . . . . . . . . 1 . . . . . 1 . . . . . . . . . . . . . . . . . . 2 . Recycling Unit Hacks 5 | . . . 2 . . . . 1 1 . . . . . . . . . . . . . . . . . . . . . . 1 . . Retrieve Components 5 | . . . 2 . . . . 1 1 . . . . . . . . . . . . . . . . . . . . . . 1 . . Scanalyzer 3 | . . . 1 . . . . . . . . . . . . . . . . . . . . . . . . . . . . 2 . . Insert Component 3 | . . . 1 . . . . . . . . . . . . . . . . . . . . . . . . . . . . 2 . . Garrison Access Hacks 4 | . . . . . . . . . 2 . . . . . . . . . . . . . . . . . . . . . 1 1 . . Seal Access 4 | . . . . . . . . . 2 . . . . . . . . . . . . . . . . . . . . . 1 1 . . Unauthorized Hacks 17 | . . . 4 . . . . 2 . . . . . . . . . . . 2 . . . . 1 . . . . . . 7 1 . Terminals 9 | . . . 2 . . . . 2 . . . . . . . . . . . 2 . . . . . . . . . . . 2 1 . Track 4 | . . . 1 . . . . 1 . . . . . . . . . . . 1 . . . . . . . . . . . 1 . . Assimilate 2 | . . . . . . . . . . . . . . . . . . . . . . . . . . . . . . . . 1 1 . Operators 3 | . . . 1 . . . . 1 . . . . . . . . . . . 1 . . . . . . . . . . . . . . Fabricators 3 | . . . . . . . . . . . . . . . . . . . . . . . . . 1 . . . . . . 2 . . Liberate 1 | . . . . . . . . . . . . . . . . . . . . . . . . . . . . . . . . 1 . . Haulers 1 | . . . . . . . . . . . . . . . . . . . . . . . . . . . . . . . . 1 . . Recompile 1 | . . . . . . . . . . . . . . . . . . . . . . . . . 1 . . . . . . . . . Repair Stations . | . . . . . . . . . . . . . . . . . . . . . . . . . . . . . . . . . . . Recycling Units 4 | . . . 2 . . . . . . . . . . . . . . . . . . . . . . . . . . . . 2 . . Reject 1 | . . . . . . . . . . . . . . . . . . . . . . . . . . . . . . . . 1 . . Recyclers 1 | . . . . . . . . . . . . . . . . . . . . . . . . . . . . . . . . 1 . . Tunnel 2 | . . . 2 . . . . . . . . . . . . . . . . . . . . . . . . . . . . . . . Scanalyzers 1 | . . . . . . . . . . . . . . . . . . . . . . . . . . . . . . . . 1 . . Researchers 1 | . . . . . . . . . . . . . . . . . . . . . . . . . . . . . . . . 1 . . Garrison Access . | . . . . . . . . . . . . . . . . . . . . . . . . . . . . . . . . . . . Data Cores Recovered 1 | . . . . . . . . . . . . . . . . . . . . . . . . . . . . . . . . 1 . . Used . | . . . . . . . . . . . . . . . . . . . . . . . . . . . . . . . . . . . Hacking Detections 70 | . . . 4 1 . . 3 10 4 . . . . 9 . . . . . 6 . . . . 2 . 2 5 . . 4 5 9 6 Full Trace Events 6 | . . . . . . . 1 2 . . . . . 1 . . . . . . . . . . . . . . . . . . 1 1 Feedback Events . | . . . . . . . . . . . . . . . . . . . . . . . . . . . . . . . . . . . Feedback Blocked . | . . . . . . . . . . . . . . . . . . . . . . . . . . . . . . . . . . . Robot Schematics Acquired 9 | . . . . . . . . . . . . 6 . . . . 3 . . . . . . . . . . . . . . . . . Robots Built . | . . . . . . . . . . . . . . . . . . . . . . . . . . . . . . . . . . . Authchips . | . . . . . . . . . . . . . . . . . . . . . . . . . . . . . . . . . . . Time . | . . . . . . . . . . . . . . . . . . . . . . . . . . . . . . . . . . . Total Robot Build Rating . | . . . . . . . . . . . . . . . . . . . . . . . . . . . . . . . . . . . Part Schematics Acquired 37 | . . . . . . . . 1 . . . 12 . . . . 20 . . . . . 4 . . . . . . . . . . . Parts Built 4 | . . . . . . . . . . . . . . . . . . . . . . . . . . . 3 . . . . 1 . . Authchips 1 | . . . . . . . . . . . . . . . . . . . . . . . . . . . 1 . . . . . . . Time 290 | . . . . . . . . . . . . . . . . . . . . . . . . . . . 162 . . . . 128 . . Total Part Build Rating 33 | . . . . . . . . . . . . . . . . . . . . . . . . . . . 25 . . . . 8 . . Parts Repaired 4 | . . . . . . . . 1 . . . . . 1 . . . . . . . . . . . . . . . . . . 2 . Time 202 | . . . . . . . . 38 . . . . . 22 . . . . . . . . . . . . . . . . . . 142 . Parts Recycled . | . . . . . . . . . . . . . . . . . . . . . . . . . . . . . . . . . . . Recycled Matter . | . . . . . . . . . . . . . . . . . . . . . . . . . . . . . . . . . . . Retrieved Matter . | . . . . . . . . . . . . . . . . . . . . . . . . . . . . . . . . . . . Retrieved Components 22 | . . . 10 . . . . 10 1 . . . . . . . . . . . . . . . . . . . . . . 1 . . Parts Scanalyzed . | . . . . . . . . . . . . . . . . . . . . . . . . . . . . . . . . . . . Part Schematics Acquired . | . . . . . . . . . . . . . . . . . . . . . . . . . . . . . . . . . . . Parts Damaged . | . . . . . . . . . . . . . . . . . . . . . . . . . . . . . . . . . . . Bothacking | -11 -10 -10 -9 -9 -9 -8 -8 -8 -7 -7 -7 -7 -6 -6 -6 -6 -6 -6 -5 -5 -5 -5 -5 -4 -4 -4 -4 -4 -4 -4 -4 -3 -2 -1 ------------ Run | Jun Mat Min Mat Min Exi Min Mat Sto Fac Low Low Dat Pro Fac Low Low Zio Dee Pro Fac Upp Upp Zhi Pro Fac Was Fac Ext Cet Arc Hub Res Res Acc Used RIF Installer . | . . . . . . . . . . . . . . . . . . . . . . . . . . . . . . . . . . . Robots Hacked 2 | . . . . . . . . . . . . . . . . . . . . . . . . . 1 . . . . . . . . 1 Non-combat . | . . . . . . . . . . . . . . . . . . . . . . . . . . . . . . . . . . . Combat . | . . . . . . . . . . . . . . . . . . . . . . . . . . . . . . . . . . . Robot Hacks Applied . | . . . . . . . . . . . . . . . . . . . . . . . . . . . . . . . . . . . Manual 2 | . . . . . . . . . . . . . . . . . . . . . . . . . 1 . . . . . . . . 1 Relay Couplers Released 4 | . . . . . . . . . . . . . . . . . . . . . . . . . 1 . . . . . . 3 . . Machine Destruction 4 | . . . . . . . . . . . . . . . . . . . . . . . . . 1 . . . . . . 3 . . Fabnet Peak Effective % . | . . . . . . . . . . . . . . . . . . . . . . . . . . . . . . . . . . . Robots Rewired 12 | . . . . . . . . . . . . . . . . . . . . . . . . . . . . 12 . . . . . . Allies Hacked . | . . . . . . . . . . . . . . . . . . . . . . . . . . . . . . . . . . . Hacks Repelled . | . . . . . . . . . . . . . . . . . . . . . . . . . . . . . . . . . . . Allies | -11 -10 -10 -9 -9 -9 -8 -8 -8 -7 -7 -7 -7 -6 -6 -6 -6 -6 -6 -5 -5 -5 -5 -5 -4 -4 -4 -4 -4 -4 -4 -4 -3 -2 -1 -------- Run | Jun Mat Min Mat Min Exi Min Mat Sto Fac Low Low Dat Pro Fac Low Low Zio Dee Pro Fac Upp Upp Zhi Pro Fac Was Fac Ext Cet Arc Hub Res Res Acc Total Allies 52 | . . 3 . . . . . 2 . . . . . . . . 2 . . . . . . . 1 19 . 17 5 . . 1 1 1 Largest Group 19 | . . 3 2 . . . . 2 . . . . . . . . 2 2 . . . . . . 1 19 . 9 6 5 5 1 . 1 Highest-Rated Group 702 | . . 40 32 . . . . 62 . . . . . . . . 192 192 . . . . . . 116 702 . 514 609 480 480 26 . 219 Highest-Rated Ally 219 | . . 16 16 . . . . 31 . . . . . . . . 96 96 . . . . . . 116 50 . 159 153 96 96 26 . 219 Total Orders 22 | . . . . . . 1 . 2 . . . . . . . . . . . . . . . . . . 2 15 . 2 . . . . STAY 1 | . . . . . . . . . . . . . . . . . . . . . . . . . . . . . . 1 . . . . FOLLOW 1 | . . . . . . . . . . . . . . . . . . . . . . . . . . . . . . 1 . . . . RETURN 20 | . . . . . . 1 . 2 . . . . . . . . . . . . . . . . . . 2 15 . . . . . . Ally Attacks 450 | . . 15 4 . . . . 20 . . . . . . . . . 21 . . . . . . 25 . 8 189 48 31 80 . . 9 Total Damage 16092 | . . 182 43 . . . . 354 . . . . . . . . . 233 . . . . . . 1857 . 106 6311 1496 1252 2921 . . 1337 Kills 93 | . . 5 . . . . . 3 . . . . . . . . . 3 . . . . . . 15 . 2 35 10 3 16 . . 1 Allies Corrupted 20 | . . . . . . . . . . . . . . . . . . . . . . . . . . 19 . . . . 1 . . . Allies Melted . | . . . . . . . . . . . . . . . . . . . . . . . . . . . . . . . . . . . Intel | -11 -10 -10 -9 -9 -9 -8 -8 -8 -7 -7 -7 -7 -6 -6 -6 -6 -6 -6 -5 -5 -5 -5 -5 -4 -4 -4 -4 -4 -4 -4 -4 -3 -2 -1 ------- Run | Jun Mat Min Mat Min Exi Min Mat Sto Fac Low Low Dat Pro Fac Low Low Zio Dee Pro Fac Upp Upp Zhi Pro Fac Was Fac Ext Cet Arc Hub Res Res Acc Robot Analysis Total 12 | . . . 2 . . . 2 3 . . . . . 1 . . . . . . . . 4 . . . . . . . . . . . Derelict Logs Recovered 16 | . . 2 . 2 . . . . . 2 1 . 1 . 1 1 1 . . . 1 2 . 2 . . . . . . . . . . Drone Launches 37 | . . . . . . 7 4 3 . . . . . . . . . . . . . . . . . . 2 21 . . . . . . Drone Recoveries 26 | . . . . . . 3 . 2 . . . . . . . . . . . . . . . . . . 2 19 . . . . . . Exploration | -11 -10 -10 -9 -9 -9 -8 -8 -8 -7 -7 -7 -7 -6 -6 -6 -6 -6 -6 -5 -5 -5 -5 -5 -4 -4 -4 -4 -4 -4 -4 -4 -3 -2 -1 ------------- Run | Jun Mat Min Mat Min Exi Min Mat Sto Fac Low Low Dat Pro Fac Low Low Zio Dee Pro Fac Upp Upp Zhi Pro Fac Was Fac Ext Cet Arc Hub Res Res Acc Turns Passed 42425 | 130 343 1701 1268 1574 1161 1457 929 2025 1102 1104 2449 1017 752 2096 1087 842 3570 3178 978 332 655 448 532 581 724 1139 724 1443 468 785 1051 1577 2029 1174 Spaces Moved 17415 | 68 148 747 370 399 418 383 294 650 378 441 945 322 359 817 407 361 1569 1366 427 246 479 352 416 329 349 339 278 689 180 314 456 710 850 559 Core . | . . . . . . . . . . . . . . . . . . . . . . . . . . . . . . . . . . . Treads 12571 | 68 131 237 370 399 418 383 294 650 378 441 945 143 . 31 407 361 1569 312 . . . . . 310 349 339 278 689 180 314 456 710 850 559 Legs 4844 | . 17 510 . . . . . . . . . 179 359 786 . . . 1054 427 246 479 352 416 19 . . . . . . . . . . Wheels . | . . . . . . . . . . . . . . . . . . . . . . . . . . . . . . . . . . . Hover . | . . . . . . . . . . . . . . . . . . . . . . . . . . . . . . . . . . . Flight . | . . . . . . . . . . . . . . . . . . . . . . . . . . . . . . . . . . . Fastest Speed 112 | 160 120 160 160 320 160 320 240 242 242 242 242 120 190 190 225 225 225 203 204 112 112 112 112 112 160 160 160 160 160 160 155 160 160 155 Average Speed 202 | 160 155 180 265 320 268 320 240 242 242 242 246 224 190 191 225 225 225 220 204 112 130 112 112 158 160 235 209 160 190 165 159 160 164 156 Slowest Speed 470 | 160 160 190 320 320 320 320 242 242 242 242 247 400 190 385 225 225 225 470 204 112 206 112 206 240 240 240 240 160 240 240 160 160 246 160 Overloaded Moves . | . . . . . . . . . . . . . . . . . . . . . . . . . . . . . . . . . . . Propulsion Burnouts . | . . . . . . . . . . . . . . . . . . . . . . . . . . . . . . . . . . . Robots Hopped . | . . . . . . . . . . . . . . . . . . . . . . . . . . . . . . . . . . . Cave-ins Triggered 2 | . . . . . . . . . . . . . . . . . . . . . . . . . . . . . . . . . . 2 Exploration Rate (%) 55 | 5 25 99 35 89 69 88 23 91 16 64 84 80 60 19 54 59 86 81 67 9 61 53 86 53 15 95 7 83 63 98 54 23 24 21 Regions Visited 34 Branch Regions 22 Pre-discovered Areas 12 | . . 1 2 . . . . . . . . 1 . . 1 . 2 . . . 1 . 3 1 . . . . . . . . . . Known Exits Taken 7 | . . . . . . . 1 . 1 . . . . 1 . . . . 1 1 . . . 1 . . 1 . . . . . . . Unknown Exits Taken 25 | 1 1 1 1 1 1 1 . 1 . 1 1 1 1 . 1 1 1 1 . . 1 1 1 . . . . 1 1 1 1 1 1 . Scrap Searched 36 | . . 1 . 2 . 1 . . . 3 15 . 3 . 1 1 3 . . . 3 1 . 2 . . . . . . . . . . Spaces Dug 262 | . . 4 2 6 . 15 5 5 15 . 10 . . 38 5 8 2 30 2 3 . 2 . . 1 9 5 1 . . 10 26 37 21 Terrain Destroyed 919 | . . 8 19 26 . 42 9 73 15 13 53 . . 80 19 12 2 96 27 4 . 24 4 . 11 14 17 75 63 6 76 39 57 35 Melee 32 | . . . . . . . . 1 15 . 10 . . 1 . . 2 . . . . 2 . . . . . . . . . . 1 . Projectile 408 | . . 8 19 9 . 9 9 7 . . . . . 61 19 12 . 10 4 4 . . 4 . 1 14 17 31 7 6 27 39 56 35 AOE 479 | . . . . 17 . 33 . 65 . 13 43 . . 18 . . . 86 23 . . 22 . . 10 . . 44 56 . 49 . . . Terrain Rammed 12 | . . . . . . . . . . . . . . . . . . . . . . . . . . . . . . . . . . 12 Walls Destroyed . | . . . . . . . . . . . . . . . . . . . . . . . . . . . . . . . . . . . Machines Disabled 2 | . . . . . . . . . . . . . . . . . . . . . . . . . . . . . . . . . . 2 Actions | -11 -10 -10 -9 -9 -9 -8 -8 -8 -7 -7 -7 -7 -6 -6 -6 -6 -6 -6 -5 -5 -5 -5 -5 -4 -4 -4 -4 -4 -4 -4 -4 -3 -2 -1 --------- Run | Jun Mat Min Mat Min Exi Min Mat Sto Fac Low Low Dat Pro Fac Low Low Zio Dee Pro Fac Upp Upp Zhi Pro Fac Was Fac Ext Cet Arc Hub Res Res Acc Total 22192 | 78 201 1061 554 522 470 556 412 954 521 463 1024 513 388 1123 498 375 1594 1484 491 292 503 393 471 382 488 637 393 914 276 517 684 972 1253 735 Wait 1938 | . 6 248 69 38 2 143 14 127 70 5 16 53 7 89 41 . . 9 4 14 4 20 23 15 55 214 75 55 21 129 102 60 183 27 Move 17379 | 67 147 746 369 398 417 382 293 649 377 440 944 321 358 816 406 360 1568 1365 426 245 478 351 415 328 349 338 277 688 179 313 455 709 849 556 Hop . | . . . . . . . . . . . . . . . . . . . . . . . . . . . . . . . . . . . Pick Up 305 | . 6 16 24 . 20 2 13 19 11 . 6 17 . 18 . . 3 16 . 5 1 3 3 4 11 6 3 6 11 2 14 28 19 18 Fast Attach 157 | 1 2 2 9 1 2 . 10 6 1 . 3 10 1 10 . . 2 14 . 1 . 1 5 4 1 7 2 6 13 8 7 9 16 3 Attach 128 | . . 2 5 4 3 . 5 5 3 1 2 12 1 11 1 . 4 9 4 4 1 1 1 . 2 3 5 3 3 . 9 6 12 6 Detach 49 | . 1 . 1 . 1 . 2 1 1 . 3 5 1 5 . . 3 3 . 3 1 . . 1 . 2 . . 4 . 5 3 3 . Swap 354 | 2 9 11 6 13 2 5 7 24 11 4 12 10 4 28 9 2 1 14 9 5 4 5 4 2 18 6 5 9 5 1 3 34 34 36 Drop 356 | 2 2 13 21 . 23 . 22 27 11 . 10 18 . 22 . . 3 26 . 1 . 2 6 10 11 11 7 5 22 5 12 27 22 15 Fire 1273 | 5 28 23 45 61 . 20 43 87 13 13 16 37 16 117 41 12 . 23 48 13 10 8 14 18 39 50 17 56 18 59 70 92 106 55 Melee 88 | . . . . . . . . 1 18 . 12 30 . 2 . . 10 5 . . . 2 . . . . . . . . . . 8 . Ram 12 | . . . . . . . . . . . . . . . . . . . . . . . . . . . . . . . . . . 12 Kick 10 | . . . . . . . . . . . . . . 5 . . . . . 1 4 . . . . . . . . . . . . . Crush 56 | 1 . . 5 7 . 4 3 8 5 . . . . . . 1 . . . . . . . . 2 . 2 1 . . 7 4 1 5 Escape Stasis 2 | . . . . . . . . . . . . . . . . . . . . . . . . . . . . . . . . . . 2 Rewire 85 | . . . . . . . . . . . . . . . . . . . . . . . . . . . . 85 . . . . . . Trap . | . . . . . . . . . . . . . . . . . . . . . . . . . . . . . . . . . . . Miscellaneous . | . . . . . . . . . . . . . . . . . . . . . . . . . . . . . . . . . . . Route ------- -11/Junkyard -10/Materials -10/Mines (discovered 3 exits: *Mat x2 / [*Sub]) -9/Materials -9/Mines (discovered 2 exits: *Mat / *Exi) -9/Exiles (discovered 2 exits: [*Min x2]) -8/Mines -8/Materials -8/Storage (discovered 2 exits: *Fac / [Rec]) -7/Factory -7/Lower Caves -7/Lower Caves -7/Data Miner -6/Proximity Caves -6/Factory (discovered 2 exits: Fac / *Low) -6/Lower Caves -6/Lower Caves -6/Zion (discovered 2 exits: [*Dee] / [*Pro]) -6/Deep Caves -5/Proximity Caves -5/Factory (discovered 6 exits: Fac x4 / *Upp x2) -5/Upper Caves -5/Upper Caves (discovered 2 exits: *Fac / *Zhi) -5/Zhirov -4/Proximity Caves -4/Factory -4/Waste -4/Factory (discovered 2 exits: *Res / *Ext) -4/Extension (discovered 3 exits: *Res x2 / *Cet) -4/Cetus (discovered 2 exits: *Res / [*Arc]) -4/Archives (discovered 3 exits: *Res / *Hub x2) -4/Hub_04(d) (discovered 4 exits: *Res x4) -3/Research -2/Research (discovered 3 exits: *Acc / Tes x2) -1/Access To Epsilon Eridani History --------- Turn | Location | Event 5 | -11/Junkyard | Discovered new exit (range 3) 131 | -11/Junkyard | Entered Materials 322 | -10/Materials | Build established: Mutant 427 | -10/Materials | Discovered new exit (range 12) 474 | -10/Materials | Entered Mines 488 | -10/Mines | Met a Derelict shopkeep closing up shop 539 | -10/Mines | Learned 2 Materials zone layouts 550 | -10/Mines | Assembled infested the area 575 | -10/Mines | Discovered new exit (range 5) 831 | -10/Mines | Core integrity fell below 50% 832 | -10/Mines | Destroyed YI-UF0 886 | -10/Mines | Discovered new exit (range 16) 1328 | -10/Mines | Discovered new exit (range 6) 1347 | -10/Mines | Found the Drone Emporium 1354 | -10/Mines | Found Prototype Device 1493 | -10/Mines | Assisted by bots powering up and referring to "LRC-V3" 1993 | -10/Mines | Learned location of Zion (-6) 2175 | -10/Mines | Entered Materials 2175 | -9/Materials | Accompanied by 2 allies 2175 | -9/Materials | Evolved 2 slots: Utility x1, Weapon x1 2481 | -9/Materials | Central database locked down 2491 | -9/Materials | Build established: Scavenger-Gunner 2580 | -9/Materials | Identified Decoy Drone Bay 3285 | -9/Materials | Discovered new exit (range 12) 3443 | -9/Materials | Entered Mines 3462 | -9/Mines | Build established: Scavenger-Tank 3950 | -9/Mines | Excavation squad dispatched 3950 | -9/Mines | A large section of the Mines collapsed 4200 | -9/Mines | Excavation squad dispatched 4450 | -9/Mines | Excavation squad dispatched 4550 | -9/Mines | Received a Rocket Launcher from a helpful Derelict 4575 | -9/Mines | Learned location of 1 exit from Materials 4674 | -9/Mines | Discovered new exit (range 7) 5005 | -9/Mines | Deemed a non-threat by the Exiles lab entrance 5005 | -9/Mines | Discovered new exit (range 5) 5017 | -9/Mines | Entered Exiles 5059 | -9/Exiles | Discovered new exit (range 15) 5110 | -9/Exiles | Met 8R-AWN 5161 | -9/Exiles | Met EX-HEX 5280 | -9/Exiles | Met EX-DEC 5462 | -9/Exiles | Discovered new exit (range 14) 5812 | -9/Exiles | Met EX-BIN 5845 | -9/Exiles | Aligned with FarCom system 5848 | -9/Exiles | Given EX-Vault access code 5908 | -9/Exiles | Opened EX-Vault 5924 | -9/Exiles | Build established: Scavenger-Gunner 5929 | -9/Exiles | Found AWS/Autocannon 5940 | -9/Exiles | Found Deploy-a-Sentry 5943 | -9/Exiles | Found Deploy-a-Sentry 5992 | -9/Exiles | Warned to stay clear of 0b10 Research branches 6008 | -9/Exiles | Exiles lab attacked by MAIN.C 6178 | -9/Exiles | Left Exiles lab with AWS/Autocannon 6178 | -9/Exiles | Entered Mines 6186 | -8/Mines | Discovered new exit (range 19) 6466 | -8/Mines | Build established: Scavenger-Skirmisher 7635 | -8/Mines | Entered Materials 7635 | -8/Materials | Evolved 2 slots: Propulsion x2 7636 | -8/Materials | Identified exit to Storage 7923 | -8/Materials | Central database locked down 8564 | -8/Materials | Entered Storage 8706 | -8/Storage | Build established: Skirmisher 9325 | -8/Storage | Garrison activated, responded to threat 9462 | -8/Storage | Discovered new exit (range 9) 10227 | -8/Storage | Repaired Arm. Treads 10277 | -8/Storage | Discovered new exit (range 8) 10330 | -8/Storage | Met a pair of Derelict thieves 10423 | -8/Storage | Destroyed 8 combat bots 10589 | -8/Storage | Entered Factory 10589 | -7/Factory | Evolved 2 slots: Power x1, Utility x1 10590 | -7/Factory | Identified exit to Lower Caves 10788 | -7/Factory | Found Powered Armor 10792 | -7/Factory | Found Powered Armor 10796 | -7/Factory | Found Powered Armor 11691 | -7/Factory | Entered Lower Caves 11981 | -7/Lower Caves | Build established: Scavenger-Gunner 12343 | -7/Lower Caves | Build established: Tank 12456 | -7/Lower Caves | Discovered new exit (range 10) 12461 | -7/Lower Caves | Learned Factory security intel 12497 | -7/Lower Caves | Learned Factory stockpile data 12795 | -7/Lower Caves | Entered another Lower Caves area 12844 | -7/Lower Caves | Encountered a Warlord checkpoint 13377 | -7/Lower Caves | Build established: Derelict-Gunner 13868 | -7/Lower Caves | Learned 8 Factory zone layouts 15043 | -7/Lower Caves | Discovered new exit (range 12) 15192 | -7/Lower Caves | Build established: Derelict-Tank 15244 | -7/Lower Caves | Entered Data Miner 15245 | -7/Data Miner | Discovered new exit (range 6) 15292 | -7/Data Miner | Met Data Miner 15342 | -7/Data Miner | Learned location of Section 7 (-3) 15342 | -7/Data Miner | Acquired the access code to Warlord's prototype stash 15386 | -7/Data Miner | Received God Mode back door access code from Data Miner 15451 | -7/Data Miner | Destroyed Data Miner 15454 | -7/Data Miner | Data Conduit disabled 15532 | -7/Data Miner | Build established: Derelict-Mutant 15817 | -7/Data Miner | Lost 8 parts (1p3n3u1w) 15834 | -7/Data Miner | Found Prototype Device 15834 | -7/Data Miner | Identified Exp. Thermal Shield 16169 | -7/Data Miner | Found Prototype Hackware 16261 | -7/Data Miner | Entered Proximity Caves 16431 | -6/Proximity Caves | Core integrity fell below 50% 16453 | -6/Proximity Caves | Build established: Scavenger-Tank 16481 | -6/Proximity Caves | Spotted B-75 Beast 16523 | -6/Proximity Caves | Destroyed B-75 Beast 16932 | -6/Proximity Caves | Discovered new exit (range 6) 16965 | -6/Proximity Caves | Received a Behemoth hack from an annoying Tinkerer 17013 | -6/Proximity Caves | Entered Factory 17013 | -6/Factory | Evolved 2 slots: Utility x2 17014 | -6/Factory | Identified exit to Lower Caves 17014 | -6/Factory | Identified exit to Factory 17510 | -6/Factory | Lost 5 parts (1p1n1u2w) 17747 | -6/Factory | Repaired Powered Armor 18057 | -6/Factory | Build established: Scavenger-Mutant 19032 | -6/Factory | Cargo convoy interrupted 19109 | -6/Factory | Entered Lower Caves 19411 | -6/Lower Caves | Build established: Scavenger-Tank 20038 | -6/Lower Caves | Build established: Tank 20113 | -6/Lower Caves | Discovered new exit (range 3) 20196 | -6/Lower Caves | Entered another Lower Caves area 20581 | -6/Lower Caves | Discovered new exit (range 5) 20585 | -6/Lower Caves | Build established: Scavenger-Mutant 20629 | -6/Lower Caves | Learned Factory stockpile data 21038 | -6/Lower Caves | Entered Zion 21074 | -6/Zion | Given A8's code to call for help 21262 | -6/Zion | Discovered new exit (range 11) 21311 | -6/Zion | System corruption cleaned by Quarantine Array 21408 | -6/Zion | Learned Factory terminal intel 21417 | -6/Zion | Found Prototype Device 21877 | -6/Zion | Learned location of Quarantine (-3) 22055 | -6/Zion | Learned Factory emergency access door positions 22809 | -6/Zion | Rebuked by Imprinter 23785 | -6/Zion | Found Prototype Device 23944 | -6/Zion | Discovered new exit (range 5) 23946 | -6/Zion | Saw the warning signs outside the Deep Caves entrance 23959 | -6/Zion | Enhanced Grunt warped into view, answering call for help 23961 | -6/Zion | Enhanced Grunt warped into view, answering call for help 24426 | -6/Zion | Build established: Mutant 24608 | -6/Zion | Entered Deep Caves 24608 | -6/Deep Caves | Accompanied by 2 allies 24939 | -6/Deep Caves | Build established: Gunner 25018 | -6/Deep Caves | Attacked by Z-Imprinter 25054 | -6/Deep Caves | Destroyed Z-Imprinter 25081 | -6/Deep Caves | Lost 3 parts (2n1u) 25591 | -6/Deep Caves | Found Prototype Protection 25591 | -6/Deep Caves | Identified Zio. Heavy Carapace 25601 | -6/Deep Caves | Found Zio. Heavy Carapace 25764 | -6/Deep Caves | Build established: Scavenger-Gunner 26228 | -6/Deep Caves | Build established: Scavenger-Mutant 26258 | -6/Deep Caves | Found Prototype Protection 26302 | -6/Deep Caves | Found Prototype Protection 26303 | -6/Deep Caves | Identified Zio. Weapon Casing (x2) 26459 | -6/Deep Caves | Discovered new exit (range 6) 26941 | -6/Deep Caves | Identified Phasing AFG 27100 | -6/Deep Caves | Found Surveybot 24 Chip 27594 | -6/Deep Caves | Build established: Gunner 27786 | -6/Deep Caves | Entered Proximity Caves 27789 | -5/Proximity Caves | Spotter reported a threat 27789 | -5/Proximity Caves | Spotter reported a threat 27920 | -5/Proximity Caves | Spotter reported a threat 28287 | -5/Proximity Caves | Spotted B-75 Beast 28334 | -5/Proximity Caves | Destroyed B-75 Beast 28359 | -5/Proximity Caves | Lost 3 parts (1p2u) 28598 | -5/Proximity Caves | Build established: Scavenger-Gunner 28748 | -5/Proximity Caves | Discovered exit to Factory (range 5) 28764 | -5/Proximity Caves | Entered Factory 28764 | -5/Factory | Evolved 2 slots: Propulsion x1, Weapon x1 28767 | -5/Factory | Loaded intel: 26 terminal locations 28814 | -5/Factory | Identified Ghost Barrier 28815 | -5/Factory | Identified exit to Upper Caves 28945 | -5/Factory | Identified exit to Factory 29064 | -5/Factory | Search patrols dispatched 29096 | -5/Factory | Entered Upper Caves 29226 | -5/Upper Caves | Learned location of Armory (-3) 29311 | -5/Upper Caves | Identified Mobile Refinery Mk. CCLXVII 29441 | -5/Upper Caves | Encountered a Warlord checkpoint 29720 | -5/Upper Caves | Discovered new exit (range 9) 29751 | -5/Upper Caves | Entered another Upper Caves area 29756 | -5/Upper Caves | Discovered exit to Factory (range 14) 29813 | -5/Upper Caves | Learned Factory emergency access door positions 29964 | -5/Upper Caves | Attracted the attention of an 0b10 checkpoint 30014 | -5/Upper Caves | Learned Factory emergency access door positions 30042 | -5/Upper Caves | Discovered new exit (range 9) 30118 | -5/Upper Caves | Build established: Scavenger-Tank 30199 | -5/Upper Caves | Entered Zhirov 30199 | -5/Zhirov | Discovered new exit (range 3) 30220 | -5/Zhirov | Met Zhirov 30240 | -5/Zhirov | Learned location of Testing (-2) 30240 | -5/Zhirov | Learned location of Command (-1) 30250 | -5/Zhirov | Zhirov requested help retrieving the SGEMP Prototype 30269 | -5/Zhirov | Found Alien Artifact 30269 | -5/Zhirov | Identified Integrated Reactor 30269 | -5/Zhirov | Installed Integrated Reactor, increased core energy generation (+10) 30352 | -5/Zhirov | Found Alien Artifact 30412 | -5/Zhirov | Cloak Generator disabled 30412 | -5/Zhirov | Attacked by Zhirov 30442 | -5/Zhirov | Zhirov detonated his lab 30731 | -5/Zhirov | Entered Proximity Caves 30739 | -4/Proximity Caves | Spotted B-86 Titan 30748 | -4/Proximity Caves | Destroyed B-86 Titan 31196 | -4/Proximity Caves | Learned Research stockpile data 31270 | -4/Proximity Caves | Discovered exit to Factory (range 16) 31312 | -4/Proximity Caves | Entered Factory 31312 | -4/Factory | Evolved 2 slots: Utility x2 31313 | -4/Factory | Identified exit to Extension 31702 | -4/Factory | Spotted B-86 Titan 31703 | -4/Factory | Befriended a Behemoth using the annoying Tinkerer's hack 32036 | -4/Factory | Sucked down chute 32036 | -4/Factory | Entered Waste 32051 | -4/Waste | EMP discharged 32051 | -4/Waste | System corruption reached 10% 32116 | -4/Waste | Spotted C-40 Crusher 32130 | -4/Waste | Spotted C-40 Crusher 32137 | -4/Waste | Spotted C-40 Crusher 32138 | -4/Waste | Destroyed C-40 Crusher 32141 | -4/Waste | Spotted C-40 Crusher 32151 | -4/Waste | EMP discharged 32154 | -4/Waste | Crushed by Compactor (1 part destroyed) 32157 | -4/Waste | Crushed by Compactor (0 parts destroyed, 1 dropped) 32159 | -4/Waste | Destroyed C-40 Crusher 32165 | -4/Waste | Crushed by Compactor (0 parts destroyed, 2 dropped) 32169 | -4/Waste | Destroyed C-40 Crusher 32173 | -4/Waste | Crushed by Compactor (1 part destroyed, 1 dropped) 32175 | -4/Waste | Destroyed C-40 Crusher 32186 | -4/Waste | Found Damper Plating 32189 | -4/Waste | Spotted C-40 Crusher 32234 | -4/Waste | Spotted C-40 Crusher 32235 | -4/Waste | Destroyed C-40 Crusher 32248 | -4/Waste | Destroyed C-40 Crusher 32251 | -4/Waste | EMP discharged 32277 | -4/Waste | Found Damper Plating 32351 | -4/Waste | EMP discharged 32451 | -4/Waste | EMP discharged 32551 | -4/Waste | EMP discharged 32634 | -4/Waste | Build established: Scavenger-Mutant 32651 | -4/Waste | EMP discharged 32741 | -4/Waste | Met Warlord forces unprepared to attack 32751 | -4/Waste | EMP discharged 32851 | -4/Waste | EMP discharged 32912 | -4/Waste | Discovered new exit (range 13) 32951 | -4/Waste | EMP discharged 33051 | -4/Waste | EMP discharged 33151 | -4/Waste | EMP discharged 33175 | -4/Waste | Entered Factory 33418 | -4/Factory | Fabricated Enh. Quantum Rifle? 33482 | -4/Factory | Build established: Scavenger-Skirmisher 33619 | -4/Factory | Fabricated Assault Drone Bay? 33767 | -4/Factory | Discovered new exit (range 10) 33880 | -4/Factory | Discovered exit to Extension (range 5) 33899 | -4/Factory | Entered Extension 34269 | -4/Extension | Rescued a captive Derelict 34310 | -4/Extension | Rescued a captive Derelict 34610 | -4/Extension | Spotted B-86 Titan 34618 | -4/Extension | Destroyed B-86 Titan 34621 | -4/Extension | Spotted B-86 Titan 34624 | -4/Extension | Allies destroyed B-86 Titan 34692 | -4/Extension | Rescued a captive Derelict 34724 | -4/Extension | Energy Cycler disabled 34724 | -4/Extension | Rescued a captive Derelict 34725 | -4/Extension | Rescued A7 34725 | -4/Extension | Rescued a captive Derelict 34725 | -4/Extension | Rescued a captive Derelict 34738 | -4/Extension | Rescued a captive Derelict 34792 | -4/Extension | Discovered new exit (range 16) 34831 | -4/Extension | Destroyed 10 combat bots 34899 | -4/Extension | First assault squad dispatched 35074 | -4/Extension | Disrupted transfer network 35302 | -4/Extension | Discovered new exit (range 10) 35304 | -4/Extension | Discovered new exit (range 6) 35342 | -4/Extension | Entered Cetus 35342 | -4/Cetus | Accompanied by 2 allies (A7) 35347 | -4/Cetus | Acquired a Cetus Manufacturing Module code from A7 35360 | -4/Cetus | Build established: Scavenger-Tank 35361 | -4/Cetus | Spotted Cetus Guard 35362 | -4/Cetus | Spotted Cetus Guard 35362 | -4/Cetus | Spotted Cetus Guard 35365 | -4/Cetus | Spotted Cetus Guard 35372 | -4/Cetus | Allies destroyed Cetus Guard 35380 | -4/Cetus | Destroyed Cetus Guard 35385 | -4/Cetus | Destroyed Cetus Guard 35397 | -4/Cetus | Allies destroyed Cetus Guard 35422 | -4/Cetus | Lost 3 parts (3u) 35485 | -4/Cetus | Started Cetus Manufacturing Module 35510 | -4/Cetus | Manufactured an Enhanced Grunt 35514 | -4/Cetus | Discovered new exit (range 15) 35535 | -4/Cetus | Manufactured an Enhanced Grunt 35560 | -4/Cetus | Manufactured an Enhanced Grunt 35561 | -4/Cetus | Spotted Cetus Guard 35562 | -4/Cetus | Spotted Cetus Guard 35563 | -4/Cetus | Spotted Cetus Guard 35565 | -4/Cetus | Spotted Cetus Guard 35573 | -4/Cetus | Destroyed Cetus Guard 35579 | -4/Cetus | Allies destroyed Cetus Guard 35581 | -4/Cetus | Allies destroyed Cetus Guard 35581 | -4/Cetus | Destroyed Cetus Guard 35585 | -4/Cetus | Manufactured an Enhanced Grunt 35596 | -4/Cetus | Discovered new exit (range 16) 35610 | -4/Cetus | Manufactured an Enhanced Grunt 35613 | -4/Cetus | Met Revision 17 35728 | -4/Cetus | Destroyed A7 35734 | -4/Cetus | Extracted ID and sensor layout for unrecognized location from A7's data core 35744 | -4/Cetus | Found Corrupted Prototype Protection 35810 | -4/Cetus | Entered Archives 35810 | -4/Archives | Accompanied by 5 allies 35930 | -4/Archives | Discovered new exit (range 16) 36077 | -4/Archives | Discovered new exit (range 16) 36113 | -4/Archives | Discovered new exit (range 15) 36172 | -4/Archives | Build established: Scavenger-Mutant 36595 | -4/Archives | Entered Hub_04(d) 36595 | -4/Hub_04(d) | Accompanied by 5 allies 36685 | -4/Hub_04(d) | Discovered new exit (range 14) 36764 | -4/Hub_04(d) | Discovered new exit (range 5) 36980 | -4/Hub_04(d) | Build established: Scavenger-Tank 37168 | -4/Hub_04(d) | Garrison activated, responded to threat 37251 | -4/Hub_04(d) | Discovered new exit (range 5) 37345 | -4/Hub_04(d) | First assault squad dispatched 37430 | -4/Hub_04(d) | Network Hub disabled 37430 | -4/Hub_04(d) | Discovered new exit (range 13) 37466 | -4/Hub_04(d) | Spotted Lightning 37477 | -4/Hub_04(d) | Spotted Lightning 37478 | -4/Hub_04(d) | Spotted Lightning 37479 | -4/Hub_04(d) | Spotted Lightning 37483 | -4/Hub_04(d) | Spotted Lightning 37485 | -4/Hub_04(d) | Spotted Lightning 37519 | -4/Hub_04(d) | Destroyed Lightning 37525 | -4/Hub_04(d) | Destroyed Lightning 37529 | -4/Hub_04(d) | Destroyed Lightning 37539 | -4/Hub_04(d) | Destroyed Lightning 37541 | -4/Hub_04(d) | Destroyed Lightning 37558 | -4/Hub_04(d) | Lost 5 parts (1n2u2w) 37568 | -4/Hub_04(d) | Destroyed 9 combat bots 37579 | -4/Hub_04(d) | System corruption reached 30% 37617 | -4/Hub_04(d) | Spotted Lightning 37618 | -4/Hub_04(d) | Spotted Lightning 37634 | -4/Hub_04(d) | Spotted Lightning 37646 | -4/Hub_04(d) | Entered Research 37646 | -3/Research | Evolved 2 slots: Power x1, Propulsion x1 38215 | -3/Research | Fabricated Adv. Component Analysis Suite (x1) 38262 | -3/Research | Build established: Scavenger-Mutant 38544 | -3/Research | System corruption reached 10% 38807 | -3/Research | Identified Med. Regenerative Plating 38807 | -3/Research | Identified Transdimensional Reconstructor 39033 | -3/Research | Discovered new exit (range 10) 39146 | -3/Research | First assault squad dispatched 39223 | -3/Research | Entered another Research area 39223 | -2/Research | Evolved 2 slots: Utility x2 39253 | -2/Research | Lost 3 parts (1n2u) 39416 | -2/Research | Repaired Centrium Heavy Treads 39992 | -2/Research | Identified exit to Testing 40762 | -2/Research | Repaired Mic. Antimatter Reactor 40848 | -2/Research | Destroyed 7 combat bots 40910 | -2/Research | Discovered new exit (range 14) 41022 | -2/Research | First assault squad dispatched 41252 | -2/Research | Entered Access 41252 | -1/Access | Evolved 2 slots: Power x1, Weapon x1 41541 | -1/Access | Build established: Generator-Mutant 41765 | -1/Access | Crushed by falling debris 41766 | -1/Access | Crushed by falling debris 42059 | -1/Access | System corruption reached 10% 42226 | -1/Access | Spotted B-99 Colossus 42229 | -1/Access | Befriended a Behemoth using the annoying Tinkerer's hack 42239 | -1/Access | Spotted B-99 Colossus 42259 | -1/Access | Allies destroyed B-99 Colossus 42273 | -1/Access | Destroyed B-99 Colossus 42403 | -1/Access | Discovered new exit (range 3) 42426 | *** | Escaped! Last Messages --------------- 42378_ Quantum Rifle broken. 42378_ Destabilizing: Short circuit. 42378_ Destabilizing: Core damaged (-48). 42389_ Rammed Main Access Shell. 42389_ Destabilizing: System corrupted (+1). 42389_ Adv. Particle Charger broken. 42389_ Destabilizing: Short circuit. 42391_ Rammed Main Access Shell. 42391_ Destabilizing: System corrupted (+1). 42391_ Adv. Heat Sink broken. 42391_ Destabilizing: Short circuit. 42403_ Rammed Main Access Shell. 42403_ Main Access Shell breached. 42403_ Destabilizing: Core damaged (-80). 42403_ Destabilizing: System corrupted (+2). 42403_ EXIT=FOUND 42405_ System corrupted: Energy discharge (-110). 42423_ Rammed Main Access Shell. 42423_ Destabilizing: Core damaged (-80). 42423_ Destabilizing: Core damaged (-32). Map ----- +----------------------------------------------------+ | ?????????# # ###+######### ####????? | | ?????????# # # ### ###?????? | | ?????????# # # ### ###?????? | | ??????#### " # # ### ####????# | | ??????? + """ # # ### ###?????? | | ?????????# """ # # [ ### ###?????# | | ?????????# " +% # [ ### ###?????? | | ?????????# # # [ + ????? | | ?????????# [ #% #| ### ???? | | ?????????############## ############# ????? | | ??????????????###### %[ ########## ?????? | | ??????????????? ### %% =[########## ?????? | | ??????????????? ### % ! ########## ??????? | | ??????????????? ### [% ########## ???????? | | ??????????????? ###%% ########## #???????? | | ??????????????? ?##% % ########## #???????? | | ?????????????????### = % ########## ????????? | | ????????????????#?##"""""%""""####### ????????? | | ?????????????????###"""""%""""####### ? ?????????? | | ??????????????????##""""" """"####### ??????????? | | ???????????????????#""""" """"####### ???????????? | | ???????????????????# #####?#????????????? | | ???????????????????# """""" #???#??????????????? | | ???????????????????# " "? #??????????????????? | | ???????????????????# " "" " #??????????????????? | | ???????????????????# " "@ " #??????????????????? | | ???????????????????# " " #??????????????????? | | ???????????????????# " """ #??????????????????? | | ???????????????????# #??????????????????? | | ???????????????????# #??????????????????? | | ???????????????????""""""""""""??????????????????? | | ?????????????????????????????????????????????????? | | ?????????????????????????????????????????????????? | | ?????????????????????????????????????????????????? | | ?????????????????????????????????????????????????? | | ?????????????????????????????????????????????????? | | ?????????????????????????????????????????????????? | | ?????????????????????????????????????????????????? | | ?????????????????????????????????????????????????? | | ?????????????????????????????????????????????????? | | ?????????????????????????????????????????????????? | | ?????????????????????????????????????????????????? | | ?????????????????????????????????????????????????? | | ?????????????????????????????????????????????????? | | ?????????????????????????????????????????????????? | | ?????????????????????????????????????????????????? | | ?????????????????????????????????????????????????? | | ?????????????????????????????????????????????????? | | ?????????????????????????????????????????????????? | | ?????????????????????????????????????????????????? | +----------------------------------------------------+ Best States ------------- Heat Dissipation 135 Coolant Potential 120 Energy Generation 99 Energy Capacity 1140 Matter Stores 300 Matter Capacity 300 Sight Range 16 Terrain Scan Range 14 Terrain Scan Density 2010 Jamming Range 16 Base Temperature (-) 200 Armor Coverage 3200 Resistance: KI 20 Resistance: EM 90 Weapon Shielding 100 Evasion (%) 55 Targeting Accuracy 8 Recoil Reduction 6 Matter Filtering 50 Particle Charging 25 Salvage Targeting 2 Offensive Hacking 24 Defensive Hacking 20 Authchip Count 1 Item Schematics ----------------- EM Disruption Field | -8/Storage | Hacked Combat Drone Bay | -7/Data Miner | Free Lgt. Regenerative Plating | -7/Data Miner | Free Biomechanical Wings | -7/Data Miner | Free Gravity Neutralizer | -7/Data Miner | Free Com. Ion Cannon | -7/Data Miner | Free Nuclear Pulse Array | -7/Data Miner | Free Variable Charge Gun | -7/Data Miner | Free Imp. Proton Missile Launcher | -7/Data Miner | Free Imp. Focal Shield | -7/Data Miner | Free Point Defense System | -7/Data Miner | Free Adv. Drone Bay | -7/Data Miner | Free Graphene Brace | -7/Data Miner | Free System Guard | -6/Zion | Archive Plasma Rifle | -6/Zion | Archive Adv. Melee Analysis Suite | -6/Zion | Archive Imp. Arc Projector | -6/Zion | Archive Adv. System Restoration Module | -6/Zion | Archive Adv. Coolant Injector | -6/Zion | Archive Tesla Rifle | -6/Zion | Archive Imp. Reaction Control System | -6/Zion | Archive Neutrino Core | -6/Zion | Archive Power Sword | -6/Zion | Archive Lrn. Proton Cannon | -6/Zion | Archive Railgun | -6/Zion | Archive Beamcaster | -6/Zion | Free Enh. Flamer | -6/Zion | Free Slug Cannon | -6/Zion | Free Battle Cannon | -6/Zion | Free Hvy. Battle Rifle | -6/Zion | Free Battle Rifle | -6/Zion | Free Arc Thrower | -6/Zion | Free Riot Gun | -6/Zion | Free Assault Drone Bay | -5/Zhirov | Free Exp. Heat Sink | -5/Zhirov | Free Exp. Optical Array | -5/Zhirov | Free Imp. Arc Thrower | -5/Zhirov | Free Robot Schematics ------------------ E-15 Imp | -7/Data Miner | Free S-27 Virus | -7/Data Miner | Free G-50 Soldier | -7/Data Miner | Free Y-54 Guardian | -7/Data Miner | Free H-66 Slayer | -7/Data Miner | Free R-10 Processor | -7/Data Miner | Free A-15 Conveyor | -6/Zion | Archive L-41 Fighter | -6/Zion | Archive G-73 Enforcer | -6/Zion | Archive Fabricated ------------ Enh. Quantum Rifle | x2 | -4/Factory | Preloaded Assault Drone Bay | x1 | -4/Factory | Authchip Adv. Component Analysis Suite | x1 | -3/Research | Preloaded Alien Tech Used ----------------- Integrated Reactor Achievements -------------- None Challenges ------------ None Game ------ Seed MasterAnalysisComputer Manual? 0 Play Time 08:18:14 Cumulative 1509.8 hours Start 2023.11.02 @ 16:29:08 End 2023.11.03 @ 19:29:57 Sessions 3 Manual Loads 0 Difficulty Rogue Special Mode None Game No. 418 Rogue 418 Adventurer 0 Explorer 0 Win Type 0 Total 88 Types 14/18/17/3/1/2/29/2/2 Lore% 96 Gallery% 97 Achievement% 89 Wizard Run 0 Options --------- ASCII 0 Keyboard 0 Movement Numpad Keybinds 0 Fullscreen 2 Font 24/Smallcaps Map View 76x50 Tactical HUD 1 Map Filters NONE Filters NONE Steam 1 RUN: 6088ab74-77d9-401d-a36b-5e9b1b3cb64d